Workbook

Sheet Disclaimer
L2: Copyright © 2022 Society of Actuaries Research Institute
B3: Regulatory Capital Adequacy for Life Insurance Companies Example
B4: Comparison of Jurisdictions Tool
B6: Disclaimer
B8: This software is made available free of charge with the understanding that neither the author nor the Society of Actuaries Research Institute
B9: accepts any liability for its use. It may be used for any personal, research or commercial use provided that the user does not represent it as
B10: their own work and does not distribute it to others for a fee.
B12: The user should be aware that a number of simplifications have been made to this software as it is intended to illustrate the differences in results among the four selected jurisdictions. These simplifications are as follows:
B13: General
B14: 1) The Insurance Company in this example is a Life and Annuity Insurance Company. It assumes there are no non-life and health entities included.
B15: 2) The Insurance Company only operates in the juridiction that is being analyzed and assumes it is not a multi-national company. For example, when looking at calculating required capital for the United States (US), then the company only operates in the US. For Canada, the company only operates in Canada, etc.
B16: 3) All assets and liabilities are denominated in the jurisdiction being modeled and assume that currency risk is zero.
B17: 4) All liabilities were issued in the jurisdiction being modeled, and cross border risk profile differences are zero.
B20: US Risk-Based Capital (RBC)
B21: 1) Tax Rate is 21%
B22: 2) Statutory reserves are 15% greater than model reserves for life insurance, and 95% of annuity model reserves.
B23: 3) Book value of bonds is assumed to be 7.5% lower than market value; for all other assets, Book Value equals Market Value
B25: Canadian Life Insurance Capital Adequacy Test (LICAT)
B26: 1) There are no Deferred Tax Assets and off-balance sheet activities.
B27: 2) No preferred shares or convertible bonds
B28: 3) Canadian interest rate risk is the same value as the Solvency II interest rate risk.
B29: 4) There are no Mutual Funds, Index-Linked product, unregistered reinsurance
B30: 5) Mortality risk has been set to $2.5M for base and riskier asset scenario and $1.0M for changed liability mix scenario
B31: 6) Longevity risk has been set to $25K for base and riskier asset scenario and $75K for changed liability mix scenario
B32: 7) Lapse and Policyholder Behaviour Risk is $10,000
B33: 8) Expense Risk is $10,000
B34: 9) Assume no guaranteed minimum death and maturity benefits offered for segregated fund guaranteed products
B35: 10) Assume no segregated fund guarantees and no reinsurance
B36: 11) The only Tier 1 capital is contributed surplus and adjusted retained earnings.
B37: - Adjusted Retained Earnings $120,000
B38: 12) No Tier 1 deductions
B39: 13) No Tier 2 capital
B40: 14) Surplus Allowance is $1,000,000 and there are no eligible deposits
B42: Europe Solvency II
B43: 1) Asset and liability market values and risk margins will be an input, rather than a calculation. Liabilities will be input as total technical provisions, without a split between best estimate and risk margin
B44: 2) Calculation will show the Basic Solvency Capital Requirement using the “standard formula” only, i.e., no internal model and no Minimum Capital Requirement (MCR) calculation (if they want the MCR I don’t think it would be too hard to add it)
B45: 3) While available capital (“own funds”) will be shown as previously agreed, there will be no classification of own funds by tier (in other words, it will be inherently assumed that all own funds are tier 1 capital)
B46: 4) Expense component of the SCR will be a fixed input (i.e., it will not be calculated based on the Solvency II rules, since doing so would just require a judgement based input for expense levels anyway)
B47: 5) Other components of the SCR (mortality, longevity, interest, equity, property, spread) will use the SII “simplified calculation” (more factor-based than model-based)
B49: Bermuda Insurance Solvency
B50: 1) Adjustment for the loss absorbing capacity of technical provisions and adjustment for the loss absorbing capital of deferred taxes are assumed to zero
B51: 2) Equity capital charge has been set to 45% of equity assets
B52: 3) Interest rate and liquidity risk charge has been set to 1% of total assets
B53: 4) Capital charge for credit risk is assumed to be $100,000

Sheet 0. Contents
A1: SOA Research Institute
A2: Regulatory Capital Adequacy for Life Insurance Companies Example
A3: Contents
A5: This workbook is intended to be an example that illustrates Regulatory Capital Adequacy for Life Insurance Companies for the following jurisdictions: United States of America (US), Canada, Europe, and Bermuda. The purpose of this workbook is to provide a simple and illustrative example that quantifies the differences between regulatory approaches, but demonstrates the value of diversification. The user is reminded that there are a number of simplifications in calculating the capital for the jurisdictions. This workbook is for EDUCATIONAL USE ONLY. The rest of this worksheet describes the other worksheets in this workbook.
A7: 1. General Guidance
B8: This worksheet (tab) provides guidance on how to use this workbook and where to enter assumptions.
A10: 2. Inputs - [Item]
B11: These worksheets contain the inputs used to determine capital adequacy for the four jurisdictions. This includes the simplifications and solvency factors to be used to determine capital adequacy for the jurisdictions, assets, and liabilities.
A13: 2d. Mortality
B14: This worksheet contains the mortality assumption used for Solvency II.
A16: 3a. US
B17: This worksheet calculates the Minimum Required Capital, Total Adjusted Capital, Risk-Based Capital (RBC) Ratio and Statutory Balance Sheet for the United States (US) jurisdiction.
A19: 3b. Canada
B20: This worksheet calculates the Life Insurance Capital Adequacy Test (LICAT) for Canada. It includes calculations for Tier 1 and Tier 2 capital, Total Ratio and Core Ratio.
A22: 3c. Europe
B23: This worksheet calculates Solvency II for Europe.
A25: 3d. Bermuda
B26: This worksheet calculated the Insurance Solvency Framework for Bermuda.
A28: 4. Results Summary
B29: This worksheet summarizes the solvency or capital for the various jurisdictions.

Sheet 1. General Guidance
A1: SOA Research Institute
A2: Regulatory Capital Adequacy for Life Insurance Companies Example
A3: General Guidance
A5: This worksheet provides general guidance on how to use this workbook.
A7: Throughout this Excel file, parameters that can be changed by the user are identified with yellow background, as follows:
A9: All inputs are contained on the input worksheets. The numbers on the Inputs - Solvency Factors worksheet are prescribed and are not to be altered.
A11: Results will be generated on the US, Canada, Europe and Bermuda worksheets. The Results Summary worksheet shows the results for the four (4) jurisdictions as well as any potential regulatory actions to be taken.
A13: In addition to the Base scenario, there are two (2) alternate scenarios in this workbook that demonstrate how capital is impacted. The first is riskier assets while the other is a change liability mix. The set up for these scenarios are found on the following worksheets:
A14: Riskier Assets - changes to this scenario can be done by altering the percent mix in cells G16 to G21 of the "2b. Inputs - Assets" worksheet.
A15: Change Liability Mix - changes to this scenario can be done by altering the Percent Mix in cells M30 and M31 of the "2c. Inputs - Liabilities" worksheet
A17: US
A18: The solvency factors are located on the Inputs - Solvency Factors worksheet under "US Risk-Based Capital (RBC) Factors". These factors also include the Corporate Tax Rate and Authorized Control Level Risk-Based Capital factor.
A19: The assets used as based on Book Value and are found on the Inputs - Assets worksheet.
A20: The US RBC is based on the statutory reserves, premiums and net amount at risk (NAR) values found on the Inputs - Liabilities worksheet.
A22: Canada
A23: The solvency factors are located on the Inputs - Solvency Factors worksheet and are not to be changed.
A24: The book value of assets are on the Inputs-Assets worksheet.
A25: The liabilities are found on the Inputs-Liabilities worksheet.
A27: Europe
A28: The asset inputs particular to Europe are located on the Inputs - Assets worksheet under "Duration (In Years) and under "Solvency II".
A29: They include the duration of bonds, an assumed interest rate and an up/down shock to the interest rate.
A30: The liability inputs particular to Europe are located on the Inputs - Liabilities worksheet under "Solvency II". They include the
A31: assumed age for both the life insurance and annuity policy holders.
A33: Bermuda
A34: The solvency factors are located on the Inputs - Solvency Factors worksheet and are not to be changed.
A35: The market value of assets are on the Inputs-Assets worksheet.
A36: The liabilities are found on the Inputs-Liabilities worksheet.

Sheet 2a.i Inputs - US Factors
A1: SOA Research Institute
A2: Regulatory Capital Adequacy for Life Insurance Companies Example
A3: Inputs - US Solvency Factors
A6: US Risk-Based Capital (RBC) Factors
A8: Assets | B8: RBC C-1 Factors
B9: NAIC 1 | C9: NAIC 2 | D9: NAIC 3 | E9: NAIC 4 | F9: NAIC 5 | G9: NAIC 6
A10: Fixed Income | B10: 0.004 | C10: 0.013 | D10: 0.046 | E10: 0.1 | F10: 0.23 | G10: 0.3 | H10: Assume NAIC 2 bonds
B12: CM1 | C12: CM2 | D12: CM3 | E12: CM4 | F12: CM5
A13: Mortgages | B13: 0.009 | C13: 0.0175 | D13: 0.03 | E13: 0.05 | F13: 0.075 | H13: Assume CML 2 mortgages
A15: Assets | B15: RBC C-1 Factors
A16: Real Estate | B16: 0.15
A17: Equities | B17: 0.35
A19: Liabilities
A20: Product | B20: Product Type | C20: RBC C-3 Factor
A21: Product 1 | B21: Life | C21: 0.077
A22: Product 2 | B22: Annuity | C22: 0.0154
A23: Total
A25: C-2
A26: Net Amount at Risk Range | B26: Factor | C26: Max Value
A27: 500000000 | B27: 0.0023 | C27: =A27*B27 -> 1150000
A28: 5000000000 | B28: 0.0015 | C28: =(A28-A27)*B28 -> 6750000
A29: 25000000000 | B29: 0.0012 | C29: =(A29-A28)*B29 -> 24000000
A30: Over 25,000,000,000 | B30: 0.0009
A32: C-3 Market Risk | B32: 0 | C32: Simplified assumption used on the '3a. US' worksheet. Assumes market risk does not vary by scenario.
A33: C-4
B34: Factor
A35: Life & Annuity Premium | B35: 0.0308
A36: Health Premium | B36: 0.0077
A37: Separate Account Liabilities | B37: 0.0008
A39: Corporate Income Tax | B39: 0.21 | C39: Used to determine Corporate Income Tax on the '3a.US' worksheet
A40: Authorized Control Level Risk-Based Capital | B40: 0.5

Sheet 2a.ii Inputs - Canada Factors
A1: SOA Research Institute
A2: Regulatory Capital Adequacy for Life Insurance Companies Example
A3: Inputs - Canada Solvency Factors
A6: Core Ratio Factor | B6: 0.7
A7: Base Solvency Buffer Scalar | B7: 1
A8: Minimum Available Capital | B8: 5000000
B10: Base Scenario | C10: Riskier Assets | D10: Change Liability Mix
A11: Mortality Risk | B11: 2500000 | C11: =B11 -> 2500000 | D11: 1000000
A12: Longevity Risk | B12: 25000 | C12: =B12 -> 25000 | D12: 75000
A13: Lapse and Policyholder Behaviour Risk | B13: 10000 | C13: =B13 -> 10000 | D13: 7500 | E13: Simplified assumption used on the '3b. Canada' worksheet.
A14: Expense Risk | B14: 10000 | C14: =B14 -> 10000 | D14: =C14 -> 10000 | E14: Simplified assumption used on the '3b. Canada' worksheet.
A15: P&C Risk | B15: 0 | C15: =B15*1.5 -> 0 | D15: =B15*3/4 -> 0 | E15: Simplified assumption used on the '3b. Canada' worksheet.
A16: Credit for Reinsurance and Special Policyholder Arrangements | B16: 0 | C16: 0 | D16: 0 | E16: Simplified assumption used on the '3b. Canada' worksheet.
A17: Retained Earnings | B17: 120000 | C17: =B17*1.5 -> 180000 | D17: =B17*3/4 -> 90000 | E17: Simplified assumption used on the '3b. Canada' worksheet.
A18: Risk Adjustments and Surplus Allowance | B18: 1000000 | C18: 1200000 | D18: =C18 -> 1200000 | E18: Simplified assumption used on the '3b. Canada' worksheet.
A19: Other Annuity Risk | B19: 0.02 | C19: 0.02 | D19: 0.02
A20: Other Life Risk | B20: 0.005 | C20: 0.005 | D20: 0.005
A22: Credit Risk
A23: Rating Category | B23: Effective Maturity In Years
B24: 1 | C24: 2 | D24: 3 | E24: 4 | F24: 5 | G24: 10
A25: AAA | B25: 0.0025 | C25: 0.0025 | D25: 0.005 | E25: 0.005 | F25: 0.01 | G25: 0.0125
A26: AA | B26: 0.0025 | C26: 0.005 | D26: 0.0075 | E26: 0.01 | F26: 0.0125 | G26: 0.0175
A27: A | B27: 0.0075 | C27: 0.01 | D27: 0.015 | E27: 0.0175 | F27: 0.02 | G27: 0.03
A28: BBB | B28: 0.015 | C28: 0.0275 | D28: 0.0325 | E28: 0.0375 | F28: 0.04 | G28: 0.0475
A29: BB | B29: 0.0375 | C29: 0.06 | D29: 0.0725 | E29: 0.0775 | F29: 0.08 | G29: 0.08
A30: B | B30: 0.075 | C30: 0.1 | D30: 0.105 | E30: 0.105 | F30: 0.105 | G30: 0.105
A31: Lower than B | B31: 0.155 | C31: 0.18 | D31: 0.18 | E31: 0.18 | F31: 0.18 | G31: 0.18
A33: Assume no off-balance sheet activities
A34: Common Equity
A35: Developed Markets, listed and non-substantial | B35: 0.35
A36: Developed Markets, non-listed and/or substantial | B36: 0.4
A37: Other Markets, listed and non-substantial | B37: 0.45
A38: Other Markets, non-listed and/or substantial | B38: 0.5
A40: Capital charge % of Property's Balance Sheet Value if fair value unavailable | B40: 0.3
A42: Operational Risk
A44: Business Volume Required Capital
A45: Exposure | B45: Factor
A46: Direct written premiums | B46: 0.025
A47: Assumed reinsurance premiums | B47: 0.0175
A48: Investment-type products and annuities
A49: Segregated funds with guarantees (account values) | B49: 0.004
A50: Liabilities for annuities in payout period, and annuity liability equivalents for longevity risk transfer arrangements | B50: 0.0015
A51: Universal life account values | B51: 0.001
A52: Account values of mutual funds, GICs, other investment-type products and segregated funds without guarantees, and liabilities for annuities in accumulation period | B52: 0.001
A54: General Required Capital
A55: Required Capital for Credit, Insurance and Market Risks | B55: 0.0575
A56: Required Capital for Segregated Fund Guarantees | B56: 0.045
A57: Ceded Reinsurance Premiums | B57: 0.025
A59: Insurance Risk Correlation Matrix
B60: j
A61: i | B61: Mortality | C61: Longevity | D61: Morbidity incidence and claims | E61: Morbidity termination | F61: Lapse sensitive | G61: Lapse supported | H61: Expense
A62: Mortality | B62: 1
A63: Longevity | B63: -0.25 | C63: 1
A64: Morbidity incidence and claims | B64: 0.5 | C64: -0.25 | D64: 1
A65: Morbidity termination | B65: -0.25 | C65: 0.5 | D65: 0.25 | E65: 1
A66: Lapse sensitive | B66: 0.25 | C66: 0.25 | D66: 0.5 | E66: 0.5 | F66: 1
A67: Lapse supported | B67: 0 | C67: -0.25 | D67: 0 | E67: -0.25 | F67: -0.5 | G67: 1
A68: Expense | B68: 0.5 | C68: 0.25 | D68: 0.5 | E68: 0.5 | F68: 0.5 | G68: -0.25 | H68: 1
B70: Level and Trend Component
A72: Mortality Risk | B72: 0.7
A73: Longevity Risk | B73: 1
A74: Morbidity Risk | B74: 0
A75: Lapse and Policyholder Behaviour Risk | B75: 0.4
A76: Expense Risk | B76: 0
A78: Final Adjustment Factors
A79: Undiversified Risk Requirement Factor 1 | B79: =4/5 -> 0.8
A80: LT Factor 1 | B80: =1/10 -> 0.1
A81: Undiversified Risk Requirement Factor 2 | B81: =14/60 -> 0.2333333333
A82: LT Factor 2 | B82: =7/60 -> 0.1166666667
A83: Diversified Risk Requirement Factor 1 | B83: =62/60 -> 1.033333333

Sheet 2a.iii Inputs - Europe Factors
A1: SOA Research Institute
A2: Regulatory Capital Adequacy for Life Insurance Companies Example
A3: Inputs - Europe Solvency Factors
A6: Solvency Capital Requirement (Spread) | B6: 25000 | C6: Simplified assumption used on the '3c. Europe' worksheet.
A7: Solvency Capital Requirement (Concentration) | B7: 0 | C7: Simplified assumption used on the '3c. Europe' worksheet.
A8: Solvency Capital Requirement (Currency) | B8: 0 | C8: Simplified assumption used on the '3c. Europe' worksheet.
A9: Solvency Capital Requirement (Disability/Morbidity) | B9: 0 | C9: Simplified assumption used on the '3c. Europe' worksheet.
A10: Solvency Capital Requirement (Lapse) | B10: 0 | C10: Simplified assumption used on the '3c. Europe' worksheet.
A11: Solvency Capital Requirement (Expenses) | B11: 70000 | C11: Simplified assumption used on the '3c. Europe' worksheet.
A12: Solvency Capital Requirement (Revision) | B12: 0 | C12: Simplified assumption used on the '3c. Europe' worksheet.
A13: Solvency Capital Requirement (CAT) | B13: 0 | C13: Simplified assumption used on the '3c. Europe' worksheet.
A15: Equity shock for regulated markets that are members of the EEA or EOCD. | B15: 0.465
A16: Equity shock applied for regulated markets outside EEA or EOCD, like emerging markets. | B16: 0.565
A17: Prescribed correlation coefficient EEA or EOCD regulated equities and non-EEA and non-EOCD regulated equities | B17: 0.75
A18: Prescribed shock to real estate (page 12). Represents an instantaneous decrease by 25% of the value of property holdings. | B18: 0.25
B21: Interest Rate Risk
B22: Maturity in Years | C22: Increases | D22: Decreases
B23: 1 | C23: 0.7 | D23: 0.75
B24: 2 | C24: 0.7 | D24: 0.65
B25: 3 | C25: 0.64 | D25: 0.56
B26: 4 | C26: 0.59 | D26: 0.5
B27: 5 | C27: 0.55 | D27: 0.46
B28: 6 | C28: 0.52 | D28: 0.42
B29: 11 | C29: 0.39 | D29: 0.3
B30: 12 | C30: 0.37 | D30: 0.29
B31: 13 | C31: 0.35 | D31: 0.28
B32: 14 | C32: 0.34 | D32: 0.28
B33: 15 | C33: 0.33 | D33: 0.27
B34: 16 | C34: 0.31 | D34: 0.28
B35: 19 | C35: 0.27 | D35: 0.29
B36: 20 | C36: 0.26 | D36: 0.29
B37: 90 | C37: 0.2 | D37: 0.2
A39: Mortality Variance Covariance Matrix
D40: Base | E40: Riskier Assets | F40: Change Mix of Liabilities
A41: A = 0.5 if Up and 0 if Down | C41: A = | D41: =IF('3c. Europe'!B15="Up", 0.5, 0) -> 0.5 | E41: =IF('3c. Europe'!D15="Up", 0.5, 0) -> 0 | F41: =IF('3c. Europe'!F15="Up", 0.5, 0) -> 0.5 | J41: Stress Test Scenarios, Base Case*
A42: Risk | B42: Interest Rate | C42: Equity | D42: Property | E42: Spread | F42: Concentration | G42: Currency | J42: Annuity-20% Mort | K42: =annuitycalc(20,'2c. Inputs - Liabilities'!E20,'2b. Inputs - Assets'!B26) -> 12.46115908 | L42: Life Reserve +15% Mort | M42: =termlife(15,'2c. Inputs - Liabilities'!E19,20,'2b. Inputs - Assets'!B26)-'2c. Inputs - Liabilities'!B36*TermAnnuity(15,'2c. Inputs - Liabilities'!E19,20,'2b. Inputs - Assets'!B26) -> 0.04670330603
A43: Interest Rate | B43: 1 | C43: A | D43: A | E43: A | F43: 0 | G43: 0.25 | J43: Annuity Interest Up | K43: ='2c. Inputs - Liabilities'!L20*annuitycalc(0,'2c. Inputs - Liabilities'!E20,'2b. Inputs - Assets'!B28)/'2c. Inputs - Liabilities'!B37 -> 6493083.484 | L43: Life Interest Up | M43: =(termlife(0,'2c. Inputs - Liabilities'!E19,20,'2b. Inputs - Assets'!B28)-'2c. Inputs - Liabilities'!B36*TermAnnuity(0,'2c. Inputs - Liabilities'!E19,20,'2b. Inputs - Assets'!B28))*'2c. Inputs - Liabilities'!F19 -> 4643045.389
A44: Equity | B44: A | C44: 1 | D44: 0.75 | E44: 0.75 | F44: 0 | G44: 0.25 | J44: Annuity Interest Down | K44: ='2c. Inputs - Liabilities'!L20*annuitycalc(0,'2c. Inputs - Liabilities'!E20,'2b. Inputs - Assets'!B29)/'2c. Inputs - Liabilities'!B37 -> 8828139.506 | L44: Life Interest Down | M44: =(termlife(0,'2c. Inputs - Liabilities'!E19,20,'2b. Inputs - Assets'!B29)-'2c. Inputs - Liabilities'!B36*TermAnnuity(0,'2c. Inputs - Liabilities'!E19,20,'2b. Inputs - Assets'!B29))*'2c. Inputs - Liabilities'!F19 -> 8312676.218
A45: Property | B45: A | C45: 0.75 | D45: 1 | E45: 0.5 | F45: 0 | G45: 0.25 | J45: Total Interest Down | K45: =(M44-'2c. Inputs - Liabilities'!L19)+(L48-'2c. Inputs - Liabilities'!L20) -> 2533833.223 | L45: Total Interest Up | M45: =(M43-'2c. Inputs - Liabilities'!L19)+(K43-'2c. Inputs - Liabilities'!L20) -> -2553450.516
A46: Spread | B46: A | C46: 0.75 | D46: 0.5 | E46: 1 | F46: 0 | G46: 0.25 | J46: Product Type | K46: MktVal (-15% mort) | L46: MktVal (+20% mort)
A47: Concentration | B47: 0 | C47: 0 | D47: 0 | E47: 0 | F47: 1 | G47: 0 | J47: Life | K47: =M42*'2c. Inputs - Liabilities'!F19 -> 8173078.556 | L47: -
A48: Currency | B48: 0.25 | C48: 0.25 | D48: 0.25 | E48: 0.25 | F48: 0 | G48: 1 | J48: Annuity | K48: - | L48: ='2c. Inputs - Liabilities'!L20*K42/'2c. Inputs - Liabilities'!B37 -> 7910736.395
J49: *Stress tests of +20% and -15% mortality are prescribed by regulation
A50: Life Variance Covariance Matrix
A51: Risk | B51: Mortality | C51: Longevity | D51: Disability/Morbidity | E51: Lapse | F51: Expenses | G51: Revision | H51: CAT | J51: Stress Test Scenarios, Change in Liabilities*
A52: Mortality | B52: 1 | C52: -0.25 | D52: 0.25 | E52: 0 | F52: 0.25 | G52: 0 | H52: 0.25 | J52: Annuity-20% Mort | K52: =annuitycalc(20,'2c. Inputs - Liabilities'!E31,'2b. Inputs - Assets'!B26) -> 12.46115908 | L52: Life Reserve +15% Mort | M52: =termlife(15,'2c. Inputs - Liabilities'!E30,20,'2b. Inputs - Assets'!B26)-'2c. Inputs - Liabilities'!B36*TermAnnuity(15,'2c. Inputs - Liabilities'!E30,20,'2b. Inputs - Assets'!B26) -> 0.04670330603
A53: Longevity | B53: -0.25 | C53: 1 | D53: 0 | E53: 0.25 | F53: 0.25 | G53: 0.25 | H53: 0 | J53: Annuity Interest Up | K53: ='2c. Inputs - Liabilities'!L31*annuitycalc(0,'2c. Inputs - Liabilities'!E31,'2b. Inputs - Assets'!B28)/'2c. Inputs - Liabilities'!B37 -> 9734851.988 | L53: Life Interest Up | M53: =(termlife(0,'2c. Inputs - Liabilities'!E30,20,'2b. Inputs - Assets'!B28)-'2c. Inputs - Liabilities'!B36*TermAnnuity(0,'2c. Inputs - Liabilities'!E30,20,'2b. Inputs - Assets'!B28))*'2c. Inputs - Liabilities'!F30 -> 2322661.553
A54: Disability/Morbidity | B54: 0.25 | C54: 0 | D54: 1 | E54: 0 | F54: 0.5 | G54: 0 | H54: 0.25 | J54: Annuity Interest Down | K54: ='2c. Inputs - Liabilities'!L31*annuitycalc(0,'2c. Inputs - Liabilities'!E31,'2b. Inputs - Assets'!B29)/'2c. Inputs - Liabilities'!B37 -> 13235719.46 | L54: Life Interest Down | M54: =(termlife(0,'2c. Inputs - Liabilities'!E30,20,'2b. Inputs - Assets'!B29)-'2c. Inputs - Liabilities'!B36*TermAnnuity(0,'2c. Inputs - Liabilities'!E30,20,'2b. Inputs - Assets'!B29))*'2c. Inputs - Liabilities'!F30 -> 4158377.064
A55: Lapse | B55: 0 | C55: 0.25 | D55: 0 | E55: 1 | F55: 0.5 | G55: 0 | H55: 0.25 | J55: Total Interest Down | K55: =(M54- '2c. Inputs - Liabilities'!L30)+(L58 - '2c. Inputs - Liabilities'!L31) -> 1677871.821 | L55: Total Interest Up | M55: =(M53-'2c. Inputs - Liabilities'!L30)+(K53-'2c. Inputs - Liabilities'!L31) -> -2283280.901
A56: Expenses | B56: 0.25 | C56: 0.25 | D56: 0.5 | E56: 0.5 | F56: 1 | G56: 0.5 | H56: 0.25 | J56: Product Type | K56: MktVal (-15% mort) | L56: MktVal (+20% mort)
A57: Revision | B57: 0 | C57: 0.25 | D57: 0 | E57: 0 | F57: 0.5 | G57: 1 | H57: 0 | J57: Life | K57: =M52*'2c. Inputs - Liabilities'!F30 -> 4088543.992 | L57: -
A58: CAT | B58: 0.25 | C58: 0 | D58: 0.25 | E58: 0.25 | F58: 0.25 | G58: 0 | H58: 1 | J58: Annuity | K58: - | L58: ='2c. Inputs - Liabilities'!L31*K52/'2c. Inputs - Liabilities'!B37 -> 11860289.2
J59: *Stress tests of +20% and -15% mortality are prescribed by regulation

Sheet 2a.iv Inputs - Bermuda Factors
A1: SOA Research Institute
A2: Regulatory Capital Adequacy for Life Insurance Companies Example
A3: Inputs - Bermuda Solvency Factors
A6: Capital Charge for Credit Risk | B6: 100000 | C6: Simplified assumption used on the '3d. Bermuda' worksheet.
A7: Capital Charge for Currency Risk | B7: 0 | C7: Simplified assumption used on the '3d. Bermuda' worksheet.
A8: Capital Charge for Concentration Risk | B8: 0 | C8: Simplified assumption used on the '3d. Bermuda' worksheet.
A9: Capital Charge for P&C Risk | B9: 0 | C9: Simplified assumption used on the '3d. Bermuda' worksheet.
A10: Capital Charge for Stop Loss Risk | B10: 0 | C10: Simplified assumption used on the '3d. Bermuda' worksheet.
A11: Capital Charge for Riders Risk (Risks not covered in the other LT categories) | B11: 0 | C11: Simplified assumption used on the '3d. Bermuda' worksheet.
A12: Capital Charge for Morbidity Risk | B12: 0 | C12: Simplified assumption used on the '3d. Bermuda' worksheet.
A13: Capital Charge for Variable Annuity Risk | B13: 0 | C13: Simplified assumption used on the '3d. Bermuda' worksheet.
A14: Operational Risk Charge | B14: 0 | C14: Simplified assumption used on the '3d. Bermuda' worksheet.
A15: Regulatory Capital Requirement for Non-insurance Financial Operating Entities | B15: 0 | C15: Simplified assumption used on the '3d. Bermuda' worksheet.
A16: Adjustment for the Loss Absorbing Capacity of Technical Provisions | B16: 0 | C16: Simplified assumption used on the '3d. Bermuda' worksheet.
A17: Adjustment for the Loss Absorbing Capital of Deferred Taxes | B17: 0 | C17: Simplified assumption used on the '3d. Bermuda' worksheet.
A19: BSCR Rating | B19: Corporate & Sovereign Bonds & Bond Mutual Funds | C19: Residential Mortgage-Backed Securities | D19: Commerical Mortgage-Backed Securities
A20: 0 | B20: 0 | C20: N/A | D20: N/A
A21: 1 | B21: 0.004 | C21: 0.006 | D21: 0.005
A22: 2 | B22: 0.008 | C22: 0.012 | D22: 0.01
A23: 3 | B23: 0.015 | C23: 0.02 | D23: 0.018
A24: 4 | B24: 0.03 | C24: 0.04 | D24: 0.035
A25: 5 | B25: 0.08 | C25: 0.11 | D25: 0.1
A26: 6 | B26: 0.15 | C26: 0.25 | D26: 0.2
A27: 7 | B27: 0.263 | C27: 0.35 | D27: 0.3
A28: 8 | B28: 0.35 | C28: 0.35 | D28: 0.35
A30: Equities
A31: Equity Factor | B31: 0.45
A32: Type 4 Equity Holdings
A33: Equity Real Estate 1 | B33: 0.1
A35: Long Term Insurance Risk
A36: Mortality (per $1,000 NAR) | B36: Net Amount at Risk Range | C36: Adjustable Product/Treaty | D36: Non-adjustable Product/Treaty
A37: 1 | B37: 1000000000 | C37: =D37/2 -> 1.985 | D37: 3.97
A38: 2 | B38: 5000000000 | C38: =D38/2 -> 0.9 | D38: 1.8
A39: 3 | B39: 10000000000 | C39: =D39/2 -> 0.72 | D39: 1.44
A40: 4 | B40: 50000000000 | C40: =D40/2 -> 0.645 | D40: 1.29
A41: 5 | B41: Over 50,000,000,000 | C41: =D41/2 -> 0.565 | D41: 1.13
A43: Longevity (immediate pay-out annuities, contingent annuities, pension pay-outs)
A44: Attained age of annuitant | B44: Maximum Age in Band | C44: % BSCR Adjusted Reserve
A45: (a) 0 - 55 | B45: 55 | C45: 0.02
A46: (b) 56 - 60 | B46: 60 | C46: 0.03
A47: (c) 61 - 65 | B47: 65 | C47: 0.04
A48: (d) 66 - 70 | B48: 70 | C48: 0.05
A49: (e) 71 - 75 | B49: 75 | C49: 0.06
A50: (f) 76+ | B50: Over 75 | C50: 0.07
A52: Long Term Other Risk Factors
A53: Mortality (term insurance, whole life, universal life) | B53: 0.02
A54: Longevity (immediate pay-out annuities, contingent annuities, pension pay-outs) | B54: 0.005
B56: CMarket | C56: CP&C | D56: CLT | E56: CCredit
A57: CMarket | B57: 1
A58: CP&C | B58: 0.25 | C58: 1
A59: CLT | B59: 0.125 | C59: 0.5 | D59: 1
A60: CCredit | B60: 0.125 | C60: 0.25 | D60: 0 | E60: 1
A62: Market Risk Correlation Matrix
A63: CorrMarketi,j | B63: CfixedIncome | C63: Cequity | D63: Cinterest | E63: Ccurrency | F63: Cconcentration
A64: CfixedIncome | B64: 1
A65: Cequity | B65: 0.5 | C65: 1
A66: Cinterest | B66: A | C66: A | D66: 1
A67: Ccurrency | B67: 0.25 | C67: 0.25 | D67: 0.25 | E67: 1
A68: Cconcentration | B68: 0 | C68: 0 | D68: 0 | E68: 0 | F68: 1
A70: Long-Term Risk Module Correlation Matrix
A71: CorrLTi,j | B71: CLTmortality | C71: CLTstoploss | D71: CLTrider | E71: CLTmobidiity | F71: CLTlongevity | G71: CLTVariableAnnutiy | H71: CLTotherrisk
A72: CLTmortality | B72: 1
A73: CLTstoploss | B73: 0.75 | C73: 1
A74: CLTrider | B74: 0.75 | C74: 0.75 | D74: 1
A75: CLTmobidiity | B75: 0.25 | C75: 0 | D75: 0 | E75: 1
A76: CLTlongevity | B76: -0.5 | C76: -0.5 | D76: -0.5 | E76: 0 | F76: 1
A77: CLTVariableAnnutiy | B77: 0 | C77: 0 | D77: 0 | E77: 0 | F77: 0 | G77: 1
A78: CLTotherrisk | B78: 0.125 | C78: 0.25 | D78: 0.25 | E78: 0.25 | F78: 0.25 | G78: 0.25 | H78: 1

Sheet 2b. Inputs - Assets
A1: SOA Research Institute
A2: Regulatory Capital Adequacy for Life Insurance Companies Example
A3: Inputs - Asset Assumptions
A6: US uses Book Value Assets and Affiliated US Life Insurers Directly Owned.
A7: Canada uses Book Value Assets.
A8: Solvency II uses Market Value Assets, Duration, and values in Solvency II section below.
A9: Bermuda uses Market Value Assets.
A10: Market Value is determined using the Book Value and Market Value/Book Value assumptions.
A12: Affiliated US Life Insurers Directly Owned | B12: 0 | C12: Assume this company is not a subsidiary. Used on the '3a. US' worksheet. | G12: Altering the Percent Mix will impact the Book and Market Value for the Riskier Asset Scenario. Changes can be seen in the Riskier Asset Scenario on the worksheets starting with '3'.
A14: Assets | B14: Base Scenario | H14: Riskier Asset Scenario
B15: Book Value | C15: Market Value | D15: Duration (in years) | E15: Market Value/Book Value | G15: Percent Mix | H15: Book Value | I15: Market Value | J15: Duration (in years)
A16: Fixed Income 1 | B16: 7000000 | C16: =B16*E16 -> 7525000 | D16: 5 | E16: 1.075 | G16: 0.1 | H16: =G16*$B$22 -> 1820000 | I16: =H16*E16 -> 1956500 | J16: =D16 -> 5
A17: Fixed Income 2 | B17: 7000000 | C17: =B17*E17 -> 7525000 | D17: 20 | E17: 1.075 | G17: 0.1 | H17: 1820000 | I17: =H17*E17 -> 1956500 | J17: 20
A18: Mortgages | B18: 2500000 | C18: 2500000 | D18: 10 | E18: 1 | G18: 0.2 | H18: 3640000 | I18: 3640000 | J18: 10
A19: Real Estate | B19: 1000000 | C19: 1000000 | D19: - | E19: 1 | F19: real estate counts as property and MKTprop = max(delta NAV, given property shock ; 0) immediate effect on net value of asset and liab if instant decrease of 25% in value of investments in real estate | G19: 0.2 | H19: 3640000 | I19: 3640000 | J19: -
A20: Equity (Stocks in OECD or EEA countries) | B20: 500000 | C20: 500000 | D20: - | E20: 1 | G20: 0.2 | H20: 3640000 | I20: 3640000 | J20: -
A21: Equity (Stocks in emerging markets) | B21: 200000 | C21: 200000 | D21: - | E21: 1 | G21: 0.2 | H21: 3640000 | I21: 3640000 | J21: -
A22: Total | B22: =SUM(B16:B21) -> 18200000 | C22: =SUM(C16:C21) -> 19250000 | D22: - | G22: =SUM(G16:G21) -> 1 | H22: =SUM(H16:H21) -> 18200000 | I22: =SUM(I16:I21) -> 18473000
A25: Solvency II
A26: Interest Rate | B26: 0.05 | C26: Used in the Interest Up and Down scenarios and calculations in the table below. This is also used to calculate the Premium, Life Reserve and Annuity on the '2c. Inputs - Liabilities' worksheet.
A27: Interest Rate Shock Up/Down | B27: 0.02 | C27: Used in the Interest Up and Down scenarios and calculations in the table below.
A28: Interest Up Scenario | B28: =B26+B27 -> 0.07
A29: Interest Down Scenario | B29: =B26-B27 -> 0.03
B30: Base Scenario | F30: Riskier Asset Scenario
B31: Fixed Income 1 | C31: Fixed Income 2 | D31: Mortgages | E31: Total | F31: Fixed Income 1 | G31: Fixed Income 2 | H31: Mortgages | I31: Total
A32: Market Value Interest Up | B32: =C16/(1+B$26)^D16*(1+B28)^D16 -> 8269493.256 | C32: =C17/(1+B$26)^D17*(1+B28)^D17 -> 10974786.4 | D32: =C18/(1+B$26)^D18*(1+B$28)^D18 -> 3019150.725 | F32: =I16/(1+B26)^J16*(1+B28)^J16 -> 2150068.246 | G32: =I17/(1+B26)^J17*(1+B28)^J17 -> 2853444.465 | H32: =I18/(1+B26)^J18*(1+B28)^J18 -> 4395883.455
A33: Multiplier Up | B33: =VLOOKUP($D16,'2a.iii Inputs - Europe Factors'!$B23:$D37,2) -> 0.55 | C33: =VLOOKUP($D17,'2a.iii Inputs - Europe Factors'!$B24:$D38,2) -> 0.26 | D33: =VLOOKUP($D18,'2a.iii Inputs - Europe Factors'!$B25:$D59,2) -> 0 | F33: =VLOOKUP($J16,'2a.iii Inputs - Europe Factors'!$B23:$D37,2) -> 0.55 | G33: =VLOOKUP($J17,'2a.iii Inputs - Europe Factors'!$B24:$D38,2) -> 0.26 | H33: =VLOOKUP($J18,'2a.iii Inputs - Europe Factors'!$B25:$D59,2) -> 0
A34: Total Up | B34: =(B32-$C$16)*B33 -> 409471.2907 | C34: =(C32-$C$17)*C33 -> 896944.465 | D34: =(D32-C18)*D33 -> 0 | E34: =SUM(B34:D34) -> 1306415.756 | F34: =(F32-I16)*F33 -> 106462.5356 | G34: =(G32-I17)*G33 -> 233205.5609 | H34: =(H32-I18)*H33 -> 0 | I34: =SUM(F34:H34) -> 339668.0965
A35: Market Value Interest Rate Down | B35: =C16/(1+B$26)^D16*(1+B$29)^D16 -> 6835119.824 | C35: =C17/(1+B$26)^D17*(1+B$29)^D17 -> 5122300.078 | D35: =C18/(1+B$26)^D18*(1+B$29)^D18 -> 2062620.192 | F35: =I16/(1+B26)^J16*(1+B29)^J16 -> 1777131.154 | G35: =I17/(1+B26)^J17*(1+B29)^J17 -> 1331798.02 | H35: =I18/(1+B26)^J18*(1+B29)^J18 -> 3003175
A36: Multiplier Down | B36: =VLOOKUP($D16,'2a.iii Inputs - Europe Factors'!$B23:$D37,3) -> 0.46 | C36: =VLOOKUP($D17,'2a.iii Inputs - Europe Factors'!$B24:$D38,3) -> 0.29 | D36: =VLOOKUP($D18,'2a.iii Inputs - Europe Factors'!$B25:$D59,3) -> 0.25 | F36: =VLOOKUP($J16,'2a.iii Inputs - Europe Factors'!$B23:$D37,3) -> 0.46 | G36: =VLOOKUP($J17,'2a.iii Inputs - Europe Factors'!$B24:$D38,3) -> 0.29 | H36: =VLOOKUP($J18,'2a.iii Inputs - Europe Factors'!$B25:$D59,3) -> 0.25
A37: Total Down | B37: =(B35-$C$16)*B36 -> -317344.8809 | C37: =(C35-$C$17)*C36 -> -696782.9775 | D37: =(D35-C18)*D36 -> -109344.9519 | E37: =SUM(B37:D37) -> -1123472.81 | F37: =(F35-$I$16)*F36 -> -82509.66903 | G37: =(G35-$I$17)*G36 -> -181163.5742 | H37: =(H35-I18)*H36 -> -159206.25 | I37: =SUM(F37:H37) -> -422879.4932

Sheet 2c. Inputs - Liabilities
A1: SOA Research Institute
A2: Regulatory Capital Adequacy for Life Insurance Companies Example
A3: Inputs - Liabilities
A6: US uses Statutory Reserve, Premium and Net Amount At Risk columns, and Asset Valuation Reserve, Dividends Apportioned for Payment, Dividends Not Yet Apportioned and Hedging Fair Value Adjustment.
A7: Canada uses Statutory Reserve, Separate Account Reserves and Premium, and Asset Valuation Reserve, Dividends Apportioned for Payment, Dividends Not Yet Apportioned and Hedging Fair Value Adjustment.
A8: Solvency II uses Market Value and values in Solvency II section below.
A9: Bermuda uses Net Amount at Risk and Market Value
A11: Updating Values in Worksheet
A12: Level Term Period, Policy Duration and Attained Age are used in determining Premium, Annuity and Life Reserve for Solvency II.
A13: Face Amount is used on the '3a.US' and '3b.Canada' worksheets.
A14: Statutory Reserve % of Market Value is used to calculate the Statutory Reserves.
A15: Percent Mix alters the face amount, reserves premium, Net Amount at Risk and Market Value for the Change Mix of Liaibilities scenario.
A17: Base Scenario
A18: Product | B18: Product Type | C18: Level Term Period | D18: Policy Duration | E18: Attained Age | F18: Face Amount | G18: Statutory Reserve % of Market Value | H18: Statutory Reserves | I18: Separate Account Reserves | J18: Annual Premium | K18: Net Amount At Risk | L18: Market Value
A19: Product 1 | B19: Life | C19: 30 | D19: 10 | E19: 50 | F19: 175000000 | G19: 1.15 | H19: =G19*L19 -> 7118016.298 | I19: 0 | J19: =F19*B36 -> 609546.1838 | K19: =F19-H19 -> 167881983.7 | L19: =B38*F19 -> 6189579.39
A20: Product 2 | B20: Annuity | C20: N/A | D20: N/A | E20: 70 | F20: 7500000 | G20: 0.95 | H20: =G20*F20 -> 7125000 | I20: 0 | J20: 1000000 | K20: N/A | L20: =F20 -> 7500000
A21: Total | F21: =SUM(F19:F20) -> 182500000 | H21: =SUM(H19:H20) -> 14243016.3 | I21: 0 | J21: 1609546.184 | K21: 167881983.7 | L21: 13689579.39
A23: Asset Valuation Reserve | B23: 50000 | C23: Simplified assumption used on the '3a. US' and '3b. Canada' worksheets. Assume values do not change by scenario.
A24: Dividends Apportioned for Payment | B24: 30000 | C24: Simplified assumption used on the '3a. US' and '3b. Canada' worksheets. Assume values do not change by scenario.
A25: Dividends Not Yet Apportioned | B25: 0 | C25: Simplified assumption used on the '3a. US' and '3b. Canada' worksheets. Assume values do not change by scenario.
A26: Hedging Fair Value Adjustment | B26: 0 | C26: Simplified assumption used on the '3a. US' and '3b. Canada' worksheets. Assume values do not change by scenario.
A28: Change Mix of Liabilities
A29: Product | B29: Product Type | C29: =C18 -> Level Term Period | D29: =D18 -> Policy Duration | E29: Attained Age | F29: Face Amount | G29: =G18 -> Statutory Reserve % of Market Value | H29: Statutory Reserves | I29: Separate Account Reserves | J29: Annual Premium | K29: Net Amount At Risk | L29: Market Value | M29: Percent Mix
A30: Product 1 | B30: Life | C30: =C19 -> 30 | D30: 10 | E30: =E19 -> 50 | F30: =H30/H19*F19 -> 87542924.45 | G30: =G19 -> 1.15 | H30: =$H$21*$M30 -> 3560754.075 | I30: 0 | J30: =F30*B36 -> 304922.6029 | K30: =F30-H30 -> 83982170.38 | L30: =H30/G30 -> 3096307.891 | M30: 0.25
A31: Product 2 | B31: Annuity | C31: =C20 -> N/A | D31: N/A | E31: =E20 -> 70 | F31: =H31/H20*F20 -> 11244486.55 | G31: =G20 -> 0.95 | H31: =$H$21*$M31 -> 10682262.22 | I31: 0 | J31: =J20*(F31/F20) -> 1499264.873 | K31: N/A | L31: =H31/G31 -> 11244486.55 | M31: 0.75
A32: Total | F32: =SUM(F30:F31) -> 98787411 | H32: 14243016.3 | I32: 0 | J32: 1804187.476 | K32: 83982170.38 | L32: 14340794.44
A34: Solvency II
A35: Interest Rate | B35: ='2b. Inputs - Assets'!B26 -> 0.05
A36: Premium | B36: =termlife(0,E19-D19,C19,B35)/TermAnnuity(0,E19-D19,C19,B35) -> 0.00348312105
A37: Annuity | B37: =annuitycalc(0,E20,B35) -> 11.81415844
A38: Life Reserve | B38: =termlife(0,E19,C19-D19,B35)-B36*TermAnnuity(0,E19,C19-D19,B35) -> 0.03536902508

Sheet 2d. Mortality
A1: SOA Research Institute
A2: Regulatory Capital Adequacy for Life Insurance Companies Example
A3: Mortality Tables
A5: Mortality Table Source: | B5: Simple average of male and female RP 2014 mortality tables (all lives)
A6: Mortality rates and Mortality Up and Down percents are used to determine mortality for calculating premium, Annuity and Life Reserves on the '2c. Inputs - Liabilities worksheet. Also used to calculate the interest rate risk values on the '2a.iii Inputs - Europe Factors' and the Solvency II values on the '2b. Inputs - Assets' worksheet.
A8: Stress | C8: 0.15 | D8: -0.2
A9: Age | B9: Mortality | C9: Mortality Up | D9: Mortality Down | E9: Px | F9: Life Expectancy | G9: lx | H9: dx | I9: Lx | J9: Tx
A10: 0 | B10: 0.0064505 | C10: =B10*(1+$C$8) -> 0.007418075 | D10: =B10*(1+$D$8) -> 0.0051604 | E10: =1-B10 -> 0.9935495 | F10: =J10/G10 -> 82.4200649 | G10: 100000 | H10: =G10*B10 -> 645.05 | I10: =G10-0.5*H10 -> 99677.475 | J10: =SUM(I10:$I$130) -> 8242006.49
A11: 1 | B11: 0.0003855 | C11: =B11*(1+$C$8) -> 0.000443325 | D11: =B11*(1+$D$8) -> 0.0003084 | E11: =1-B11 -> 0.9996145 | F11: =J11/G11 -> 81.95192101 | G11: =G10-H10 -> 99354.95 | H11: 38.30133323 | I11: =G11-0.5*H11 -> 99335.79933 | J11: =SUM(I11:$I$130) -> 8142329.015
A12: 2 | B12: 0.0002565 | C12: 0.000294975 | D12: 0.0002052 | E12: 0.9997435 | F12: 80.98333284 | G12: =G11-H11 -> 99316.64867 | H12: 25.47472038 | I12: 99303.91131 | J12: =SUM(I12:$I$130) -> 8042993.215
A13: 3 | B13: 0.000203 | C13: 0.00023345 | D13: 0.0001624 | E13: 0.999797 | F13: 80.00398211 | G13: 99291.17395 | H13: 20.15610831 | I13: 99281.09589 | J13: =SUM(I13:$I$130) -> 7943689.304
A14: 4 | B14: 0.0001555 | C14: 0.000178825 | D14: 0.0001244 | E14: 0.9998445 | F14: 79.02012469 | G14: 99271.01784 | H14: 15.43664327 | I14: 99263.29952 | J14: =SUM(I14:$I$130) -> 7844408.208
A15: 5 | B15: 0.000138 | C15: 0.0001587 | D15: 0.0001104 | E15: 0.999862 | F15: 78.03233647 | G15: 99255.58119 | H15: 13.6972702 | I15: 99248.73256 | J15: =SUM(I15:$I$130) -> 7745144.909
A16: 6 | B16: 0.0001255 | C16: 0.000144325 | D16: 0.0001004 | E16: 0.9998745 | F16: 77.04303741 | G16: 99241.88392 | H16: 12.45485643 | I16: 99235.6565 | J16: =SUM(I16:$I$130) -> 7645896.176
A17: 7 | B17: 0.000113 | C17: 0.00012995 | D17: 9.04e-05 | E17: 0.999887 | F17: 76.05264477 | G17: 99229.42907 | H17: 11.21292548 | I17: 99223.82261 | J17: =SUM(I17:$I$130) -> 7546660.519
A18: 8 | B18: 9.95e-05 | C18: 0.000114425 | D18: 7.96e-05 | E18: 0.9999005 | F18: 75.06118318 | G18: 99218.21614 | H18: 9.872212506 | I18: 99213.28004 | J18: =SUM(I18:$I$130) -> 7447436.697
A19: 9 | B19: 8.6e-05 | C19: 9.89e-05 | D19: 6.88e-05 | E19: 0.999914 | F19: 74.06860276 | G19: 99208.34393 | H19: 8.531917578 | I19: 99204.07797 | J19: =SUM(I19:$I$130) -> 7348223.417
A20: 10 | B20: 7.7e-05 | C20: 8.855e-05 | D20: 6.16e-05 | E20: 0.999923 | F20: 73.0749302 | G20: 99199.81201 | H20: 7.638385525 | I20: 99195.99282 | J20: =SUM(I20:$I$130) -> 7249019.339
A21: 11 | B21: 8e-05 | C21: 9.2e-05 | D21: 6.4e-05 | E21: 0.99992 | F21: 72.0805189 | G21: 99192.17363 | H21: 7.93537389 | I21: 99188.20594 | J21: =SUM(I21:$I$130) -> 7149823.346
A22: 12 | B22: 0.000105 | C22: 0.00012075 | D22: 8.4e-05 | E22: 0.999895 | F22: 71.0862458 | G22: 99184.23825 | H22: 10.41434502 | I22: 99179.03108 | J22: =SUM(I22:$I$130) -> 7050635.14
A23: 13 | B23: 0.0001295 | C23: 0.000148925 | D23: 0.0001036 | E23: 0.9998705 | F23: 70.09365814 | G23: 99173.82391 | H23: 12.8430102 | I23: 99167.4024 | J23: =SUM(I23:$I$130) -> 6951456.109
A24: 14 | B24: 0.000152 | C24: 0.0001748 | D24: 0.0001216 | E24: 0.999848 | F24: 69.10267168 | G24: 99160.9809 | H24: 15.0724691 | I24: 99153.44466 | J24: =SUM(I24:$I$130) -> 6852288.707
A25: 15 | B25: 0.000175 | C25: 0.00020125 | D25: 0.00014 | E25: 0.999825 | F25: 68.11310087 | G25: 99145.90843 | H25: 17.35053398 | I25: 99137.23316 | J25: =SUM(I25:$I$130) -> 6753135.262
A26: 16 | B26: 0.0001975 | C26: 0.000227125 | D26: 0.000158 | E26: 0.9998025 | F26: 67.12493524 | G26: 99128.55789 | H26: 19.57789018 | I26: 99118.76895 | J26: =SUM(I26:$I$130) -> 6653998.029
A27: 17 | B27: 0.00022 | C27: 0.000253 | D27: 0.000176 | E27: 0.99978 | F27: 66.13809626 | G27: 99108.98 | H27: 21.8039756 | I27: 99098.07802 | J27: =SUM(I27:$I$130) -> 6554879.26
A28: 18 | B28: 0.0002425 | C28: 0.000278875 | D28: 0.000194 | E28: 0.9997575 | F28: 65.15253982 | G28: 99087.17603 | H28: 24.02864019 | I28: 99075.16171 | J28: =SUM(I28:$I$130) -> 6455781.182
A29: 19 | B29: 0.0002655 | C29: 0.000305325 | D29: 0.0002124 | E29: 0.9997345 | F29: 64.16822186 | G29: 99063.14739 | H29: 26.30126563 | I29: 99049.99676 | J29: =SUM(I29:$I$130) -> 6356706.02
A30: 20 | B30: 0.000284 | C30: 0.0003266 | D30: 0.0002272 | E30: 0.999716 | F30: 63.18513027 | G30: 99036.84612 | H30: 28.1264643 | I30: 99022.78289 | J30: =SUM(I30:$I$130) -> 6257656.023
A31: 21 | B31: 0.0003055 | C31: 0.000351325 | D31: 0.0002444 | E31: 0.9996945 | F31: 62.2029379 | G31: 99008.71966 | H31: 30.24716386 | I31: 98993.59608 | J31: =SUM(I31:$I$130) -> 6158633.24
A32: 22 | B32: 0.000325 | C32: 0.00037375 | D32: 0.00026 | E32: 0.999675 | F32: 61.22179391 | G32: 98978.4725 | H32: 32.16800356 | I32: 98962.38849 | J32: =SUM(I32:$I$130) -> 6059639.644
A33: 23 | B33: 0.0003375 | C33: 0.000388125 | D33: 0.00027 | E33: 0.9996625 | F33: 60.24153491 | G33: 98946.30449 | H33: 33.39437777 | I33: 98929.6073 | J33: =SUM(I33:$I$130) -> 5960677.256
A34: 24 | B34: 0.0003425 | C34: 0.000393875 | D34: 0.000274 | E34: 0.9996575 | F34: 59.26170448 | G34: 98912.91011 | H34: 33.87767171 | I34: 98895.97128 | J34: =SUM(I34:$I$130) -> 5861747.649
A35: 25 | B35: 0.0003285 | C35: 0.000377775 | D35: 0.0002628 | E35: 0.9996715 | F35: 58.28183726 | G35: 98879.03244 | H35: 32.48176216 | I35: 98862.79156 | J35: =SUM(I35:$I$130) -> 5762851.677
A36: 26 | B36: 0.0003205 | C36: 0.000368575 | D36: 0.0002564 | E36: 0.9996795 | F36: 57.30082483 | G36: 98846.55068 | H36: 31.68031949 | I36: 98830.71052 | J36: =SUM(I36:$I$130) -> 5663988.886
A37: 27 | B37: 0.000318 | C37: 0.0003657 | D37: 0.0002544 | E37: 0.999682 | F37: 56.31903533 | G37: 98814.87036 | H37: 31.42312877 | I37: 98799.1588 | J37: =SUM(I37:$I$130) -> 5565158.175
A38: 28 | B38: 0.00032 | C38: 0.000368 | D38: 0.000256 | E38: 0.99968 | F38: 55.33679143 | G38: 98783.44723 | H38: 31.61070311 | I38: 98767.64188 | J38: =SUM(I38:$I$130) -> 5466359.016
A39: 29 | B39: 0.000326 | C39: 0.0003749 | D39: 0.0002608 | E39: 0.999674 | F39: 54.35434482 | G39: 98751.83653 | H39: 32.19309871 | I39: 98735.73998 | J39: =SUM(I39:$I$130) -> 5367591.375
A40: 30 | B40: 0.000335 | C40: 0.00038525 | D40: 0.000268 | E40: 0.999665 | F40: 53.37190706 | G40: 98719.64343 | H40: 33.07108055 | I40: 98703.10789 | J40: =SUM(I40:$I$130) -> 5268855.635
A41: 31 | B41: 0.000347 | C41: 0.00039905 | D41: 0.0002776 | E41: 0.999653 | F41: 52.35500127 | G41: =G38-H38 -> 98751.83653 | H41: 34.26688728 | I41: 98734.70308 | J41: =SUM(I41:$I$130) -> 5170152.527
A42: 32 | B42: 0.0003605 | C42: 0.000414575 | D42: 0.0002884 | E42: 0.9996395 | F42: 51.37192201 | G42: =G39-H39 -> 98719.64343 | H42: 35.58843146 | I42: 98701.84921 | J42: =SUM(I42:$I$130) -> 5071417.824
A43: 33 | B43: 0.000375 | C43: 0.00043125 | D43: 0.0003 | E43: 0.999625 | F43: 50.38898257 | G43: 98686.57235 | H43: 37.00746463 | I43: 98668.06862 | J43: =SUM(I43:$I$130) -> 4972715.974
A44: 34 | B44: 0.00039 | C44: 0.0004485 | D44: 0.000312 | E44: 0.99961 | F44: 49.37366189 | G44: =G41-H41 -> 98717.56964 | H44: 38.49985216 | I44: 98698.31972 | J44: =SUM(I44:$I$130) -> 4874047.906
A45: 35 | B45: 0.0004045 | C45: 0.000465175 | D45: 0.0003236 | E45: 0.9995955 | F45: 48.39273005 | G45: 98679.06979 | H45: 39.91568373 | I45: 98659.11195 | J45: =SUM(I45:$I$130) -> 4775349.586
A46: 36 | B46: 0.000418 | C46: 0.0004807 | D46: 0.0003344 | E46: 0.999582 | F46: 47.4121105 | G46: 98639.15411 | H46: 41.23116642 | I46: 98618.53852 | J46: =SUM(I46:$I$130) -> 4676690.474
A47: 37 | B47: 0.0004345 | C47: 0.000499675 | D47: 0.0003476 | E47: 0.9995655 | F47: 46.43172796 | G47: 98597.92294 | H47: 42.84079752 | I47: 98576.50254 | J47: =SUM(I47:$I$130) -> 4578071.936
A48: 38 | B48: 0.0004545 | C48: 0.000522675 | D48: 0.0003636 | E48: 0.9995455 | F48: 45.45169397 | G48: 98555.08214 | H48: 44.79328483 | I48: 98532.6855 | J48: =SUM(I48:$I$130) -> 4479495.433
A49: 39 | B49: 0.00048 | C49: 0.000552 | D49: 0.000384 | E49: 0.99952 | F49: 44.47213381 | G49: 98510.28886 | H49: 47.28493865 | I49: 98486.64639 | J49: =SUM(I49:$I$130) -> 4380962.748
A50: 40 | B50: 0.000512 | C50: 0.0005888 | D50: 0.0004096 | E50: 0.999488 | F50: 43.49325057 | G50: 98463.00392 | H50: 50.41305801 | I50: 98437.79739 | J50: =SUM(I50:$I$130) -> 4282476.101
A51: 41 | B51: 0.000552 | C51: 0.0006348 | D51: 0.0004416 | E51: 0.999448 | F51: 42.51527439 | G51: 98412.59086 | H51: 54.32375015 | I51: 98385.42898 | J51: =SUM(I51:$I$130) -> 4184038.304
A52: 42 | B52: 0.000601 | C52: 0.00069115 | D52: 0.0004808 | E52: 0.999399 | F52: 41.53847963 | G52: 98358.26711 | H52: 59.11331853 | I52: 98328.71045 | J52: =SUM(I52:$I$130) -> 4085652.875
A53: 43 | B53: 0.000661 | C53: 0.00076015 | D53: 0.0005288 | E53: 0.999339 | F53: 40.56315859 | G53: 98299.15379 | H53: 64.97574066 | I53: 98266.66592 | J53: =SUM(I53:$I$130) -> 3987324.164
A54: 44 | B54: 0.0007325 | C54: 0.000842375 | D54: 0.000586 | E54: 0.9992675 | F54: 39.58965785 | G54: 98234.17805 | H54: 71.95653542 | I54: 98198.19978 | J54: =SUM(I54:$I$130) -> 3889057.498
A55: 45 | B55: 0.000815 | C55: 0.00093725 | D55: 0.000652 | E55: 0.999185 | F55: 38.61831202 | G55: 98162.22152 | H55: 80.00221053 | I55: 98122.22041 | J55: =SUM(I55:$I$130) -> 3790859.299
A56: 46 | B56: 0.00091 | C56: 0.0010465 | D56: 0.000728 | E56: 0.99909 | F56: 37.64940378 | G56: 98082.2193 | H56: 89.25481957 | I56: 98037.59189 | J56: =SUM(I56:$I$130) -> 3692737.078
A57: 47 | B57: 0.0010155 | C57: 0.001167825 | D57: 0.0008124 | E57: 0.9989845 | F57: 36.68324053 | G57: 97992.96449 | H57: 99.51185543 | I57: 97943.20856 | J57: =SUM(I57:$I$130) -> 3594699.486
A58: 48 | B58: 0.001132 | C58: 0.0013018 | D58: 0.0009056 | E58: 0.998868 | F58: 35.72002196 | G58: 97893.45263 | H58: 110.8153884 | I58: 97838.04494 | J58: =SUM(I58:$I$130) -> 3496756.278
A59: 49 | B59: 0.001258 | C59: 0.0014467 | D59: 0.0010064 | E59: 0.998742 | F59: 34.75993621 | G59: 97782.63724 | H59: 123.0105576 | I59: 97721.13196 | J59: =SUM(I59:$I$130) -> 3398918.233
A60: 50 | B60: 0.001394 | C60: 0.0016031 | D60: 0.0011152 | E60: 0.998606 | F60: 33.8030895 | G60: 97659.62668 | H60: 136.1375196 | I60: 97591.55792 | J60: =SUM(I60:$I$130) -> 3301197.101
A61: 51 | B61: 0.0036445 | C61: 0.004191175 | D61: 0.0029156 | E61: 0.9963555 | F61: 32.84957881 | G61: 97523.48916 | H61: 355.4243563 | I61: 97345.77699 | J61: =SUM(I61:$I$130) -> 3203605.543
A62: 52 | B62: 0.003883 | C62: 0.00446545 | D62: 0.0031064 | E62: 0.996117 | F62: 31.9679081 | G62: 97168.06481 | H62: 377.3035956 | I62: 96979.41301 | J62: =SUM(I62:$I$130) -> 3106259.766
A63: 53 | B63: 0.0041335 | C63: 0.004753525 | D63: 0.0033068 | E63: 0.9958665 | F63: 31.0905743 | G63: 96790.76121 | H63: 400.0846115 | I63: 96590.71891 | J63: =SUM(I63:$I$130) -> 3009280.353
A64: 54 | B64: 0.004398 | C64: 0.0050577 | D64: 0.0035184 | E64: 0.995602 | F64: 30.21754527 | G64: 96390.6766 | H64: 423.9261957 | I64: 96178.7135 | J64: =SUM(I64:$I$130) -> 2912689.634
A65: 55 | B65: 0.0046785 | C65: 0.005380275 | D65: 0.0037428 | E65: 0.9953215 | F65: 29.34882038 | G65: 95966.7504 | H65: 448.9804418 | I65: 95742.26018 | J65: =SUM(I65:$I$130) -> 2816510.921
A66: 56 | B66: 0.0049785 | C66: 0.005725275 | D66: 0.0039828 | E66: 0.9950215 | F66: 28.48442401 | G66: 95517.76996 | H66: 475.5352178 | I66: 95280.00235 | J66: =SUM(I66:$I$130) -> 2720768.66
A67: 57 | B67: 0.005303 | C67: 0.00609845 | D67: 0.0042424 | E67: 0.994697 | F67: 27.62444154 | G67: 95042.23475 | H67: 504.0089709 | I67: 94790.23026 | J67: =SUM(I67:$I$130) -> 2625488.658
A68: 58 | B68: 0.0056565 | C68: 0.006504975 | D68: 0.0045252 | E68: 0.9943435 | F68: 26.76904931 | G68: 94538.22577 | H68: 534.7554741 | I68: 94270.84804 | J68: =SUM(I68:$I$130) -> 2530698.428
A69: 59 | B69: 0.006047 | C69: 0.00695405 | D69: 0.0048376 | E69: 0.993953 | F69: 25.91848548 | G69: 94003.4703 | H69: 568.4389849 | I69: 93719.25081 | J69: =SUM(I69:$I$130) -> 2436427.58
A70: 60 | B70: 0.006481 | C70: 0.00745315 | D70: 0.0051848 | E70: 0.993519 | F70: 25.07312617 | G70: 93435.03132 | H70: 605.552438 | I70: 93132.2551 | J70: =SUM(I70:$I$130) -> 2342708.329
A71: 61 | B71: 0.006965 | C71: 0.00800975 | D71: 0.005572 | E71: 0.993035 | F71: 24.23342349 | G71: 92829.47888 | H71: 646.5573204 | I71: 92506.20022 | J71: =SUM(I71:$I$130) -> 2249576.074
A72: 62 | B72: 0.007505 | C72: 0.00863075 | D72: 0.006004 | E72: 0.992495 | F72: 23.3998862 | G72: 92182.92156 | H72: 691.8328263 | I72: 91837.00514 | J72: =SUM(I72:$I$130) -> 2157069.874
A73: 63 | B73: 0.0081075 | C73: 0.009323625 | D73: 0.006486 | E73: 0.9918925 | F73: 22.57304943 | G73: 91491.08873 | H73: 741.7640019 | I73: 91120.20673 | J73: =SUM(I73:$I$130) -> 2065232.868
A74: 64 | B74: 0.0087805 | C74: 0.010097575 | D74: 0.0070244 | E74: 0.9912195 | F74: 21.75346943 | G74: 90749.32473 | H74: =G74*B74 -> 796.8244458 | I74: 90350.91251 | J74: =SUM(I74:$I$130) -> 1974112.662
A75: 65 | B75: 0.0095305 | C75: 0.010960075 | D75: 0.0076244 | E75: 0.9904695 | F75: 20.94173862 | G75: 89952.50028 | H75: 857.2923039 | I75: 89523.85413 | J75: =SUM(I75:$I$130) -> 1883761.749
A76: 66 | B76: 0.0103685 | C76: 0.011923775 | D76: 0.0082948 | E76: 0.9896315 | F76: 20.13843321 | G76: =G75-H75 -> 89095.20798 | H76: 923.7836639 | I76: 88633.31615 | J76: =SUM(I76:$I$130) -> 1794237.895
A77: 67 | B77: 0.0113045 | C77: 0.013000175 | D77: 0.0090436 | E77: 0.9886955 | F77: 19.34418767 | G77: 88171.42432 | H77: 996.7338662 | I77: 87673.05738 | J77: =SUM(I77:$I$130) -> 1705604.579
A78: 68 | B78: 0.01235 | C78: 0.0142025 | D78: 0.00988 | E78: 0.98765 | F78: 18.55964745 | G78: 87174.69045 | H78: 1076.607427 | I78: 86636.38674 | J78: =SUM(I78:$I$130) -> 1617931.522
A79: 69 | B79: 0.013517 | C79: =B79*(1+$C$8) -> 0.01554455 | D79: =B79*(1+$D$8) -> 0.0108136 | E79: =1-B79 -> 0.986483 | F79: =J79/G79 -> 17.78547304 | G79: 86098.08302 | H79: 1163.787788 | I79: =G79-0.5*H79 -> 85516.18913 | J79: =SUM(I79:$I$130) -> 1531295.135
A80: 70 | B80: 0.0148185 | C80: 0.017041275 | D80: 0.0118548 | E80: 0.9851815 | F80: 17.02232228 | G80: 84934.29523 | H80: 1258.598854 | I80: 84304.99581 | J80: =SUM(I80:$I$130) -> 1445778.946
A81: 71 | B81: 0.016267 | C81: 0.01870705 | D81: 0.0130136 | E81: 0.983733 | F81: 16.27084098 | G81: 83675.69638 | H81: 1361.152553 | I81: 82995.1201 | J81: =SUM(I81:$I$130) -> 1361473.95
A82: 72 | B82: 0.0178775 | C82: 0.020559125 | D82: 0.014302 | E82: 0.9821225 | F82: 15.53162747 | G82: 82314.54383 | H82: 1471.578257 | I82: 81578.7547 | J82: =SUM(I82:$I$130) -> 1278478.83
A83: 73 | B83: 0.0196685 | C83: 0.022618775 | D83: 0.0157348 | E83: 0.9803315 | F83: 14.80524702 | G83: 80842.96557 | H83: 1590.059868 | I83: 80047.93564 | J83: =SUM(I83:$I$130) -> 1196900.075
A84: 74 | B84: 0.021661 | C84: 0.02491015 | D84: 0.0173288 | E84: 0.978339 | F84: 14.09225478 | G84: 79252.9057 | H84: 1716.69719 | I84: 78394.55711 | J84: =SUM(I84:$I$130) -> 1116852.139
A85: 75 | B85: 0.023882 | C85: 0.0274643 | D85: 0.0191056 | E85: 0.976118 | F85: 13.39319529 | G85: 77536.20851 | H85: 1851.719732 | I85: 76610.34865 | J85: =SUM(I85:$I$130) -> 1038457.582
A86: 76 | B86: 0.026363 | C86: 0.03031745 | D86: 0.0210904 | E86: 0.973637 | F86: 12.70864413 | G86: 75684.48878 | H86: 1995.270178 | I86: 74686.85369 | J86: =SUM(I86:$I$130) -> 961847.2337
A87: 77 | B87: 0.0291445 | C87: 0.033516175 | D87: 0.0233156 | E87: 0.9708555 | F87: 12.03921546 | G87: 73689.2186 | H87: 2147.635432 | I87: 72615.40089 | J87: =SUM(I87:$I$130) -> 887160.38
A88: 78 | B88: 0.032273 | C88: 0.03711395 | D88: 0.0258184 | E88: 0.967727 | F88: 11.38561579 | G88: 71541.58317 | H88: 2308.861514 | I88: 70387.15241 | J88: =SUM(I88:$I$130) -> 814544.9791
A89: 79 | B89: 0.035799 | C89: 0.04116885 | D89: 0.0286392 | E89: 0.964201 | F89: 10.74864326 | G89: 69232.72166 | H89: 2478.462203 | I89: 67993.49056 | J89: =SUM(I89:$I$130) -> 744157.8267
A90: 80 | B90: 0.039783 | C90: 0.04575045 | D90: 0.0318264 | E90: 0.960217 | F90: 10.12915643 | G90: 66754.25945 | H90: 2655.684704 | I90: 65426.4171 | J90: =SUM(I90:$I$130) -> 676164.3361
A91: 81 | B91: 0.044289 | C91: 0.05093235 | D91: 0.0354312 | E91: 0.955711 | F91: 9.528104508 | G91: 64098.57475 | H91: 2838.861777 | I91: 62679.14386 | J91: =SUM(I91:$I$130) -> 610737.919
A92: 82 | B92: 0.049386 | C92: 0.0567939 | D92: 0.0395088 | E92: 0.950614 | F92: 8.946479645 | G92: 61259.71297 | H92: 3025.372185 | I92: 59747.02688 | J92: =SUM(I92:$I$130) -> 548058.7752
A93: 83 | B93: 0.0551505 | C93: 0.063423075 | D93: 0.0441204 | E93: 0.9448495 | F93: 8.385288503 | G93: 58234.34079 | H93: 3211.653012 | I93: 56628.51428 | J93: =SUM(I93:$I$130) -> 488311.7483
A94: 84 | B94: 0.061661 | C94: 0.07091015 | D94: 0.0493288 | E94: 0.938339 | F94: 7.845549744 | G94: 55022.68778 | H94: 3392.753951 | I94: 53326.3108 | J94: =SUM(I94:$I$130) -> 431683.234
A95: 85 | B95: 0.0690005 | C95: 0.079350575 | D95: 0.0552004 | E95: 0.9309995 | F95: 7.328247301 | G95: 51629.93383 | H95: 3562.491249 | I95: 49848.6882 | J95: =SUM(I95:$I$130) -> 378356.9232
A96: 86 | B96: 0.0772565 | C96: 0.088844975 | D96: 0.0618052 | E96: 0.9227435 | F96: 6.834318978 | G96: 48067.44258 | H96: 3713.522377 | I96: 46210.68139 | J96: =SUM(I96:$I$130) -> 328508.235
A97: 87 | B97: 0.086525 | C97: 0.09950375 | D97: 0.06922 | E97: 0.913475 | F97: 6.364658465 | G97: 44353.9202 | H97: 3837.722945 | I97: 42435.05873 | J97: =SUM(I97:$I$130) -> 282297.5536
A98: 88 | B98: 0.0969105 | C98: 0.111447075 | D98: 0.0775284 | E98: 0.9030895 | F98: 5.920163075 | G98: 40516.19725 | H98: 3926.444934 | I98: 38552.97479 | J98: =SUM(I98:$I$130) -> 239862.4949
A99: 89 | B99: 0.108531 | C99: 0.12481065 | D99: 0.0868248 | E99: 0.891469 | F99: 5.501800569 | G99: 36589.75232 | H99: 3971.122409 | I99: 34604.19112 | J99: =SUM(I99:$I$130) -> 201309.5201
A100: 90 | B100: 0.121517 | C100: 0.13974455 | D100: 0.0972136 | E100: 0.878483 | F100: 5.110739766 | G100: 32618.62991 | H100: 3963.718051 | I100: 30636.77089 | J100: =SUM(I100:$I$130) -> 166705.329
A101: 91 | B101: 0.135533 | C101: 0.15586295 | D101: 0.1084264 | E101: 0.864467 | F101: 4.748524748 | G101: 28654.91186 | H101: 3883.686169 | I101: 26713.06878 | J101: =SUM(I101:$I$130) -> 136068.5581
A102: 92 | B102: 0.1503605 | C102: 0.172914575 | D102: 0.1202884 | E102: 0.8496395 | F102: 4.414617617 | G102: 24771.22569 | H102: 3724.61388 | I102: 22908.91875 | J102: =SUM(I102:$I$130) -> 109355.4893
A103: 93 | B103: 0.165875 | C103: 0.19075625 | D103: 0.1327 | E103: 0.834125 | F103: 4.107386565 | G103: 21046.61181 | H103: 3491.106734 | I103: 19301.05844 | J103: =SUM(I103:$I$130) -> 86446.57059
A104: 94 | B104: 0.1820225 | C104: 0.209325875 | D104: 0.145618 | E104: 0.8179775 | F104: 3.82475536 | G104: 17555.50508 | H104: 3195.496923 | I104: 15957.75661 | J104: =SUM(I104:$I$130) -> 67145.51215
A105: 95 | B105: 0.1987965 | C105: 0.228615975 | D105: 0.1590372 | E105: 0.8012035 | F105: 3.564604907 | G105: 14360.00815 | H105: 2854.719361 | I105: 12932.64847 | J105: =SUM(I105:$I$130) -> 51187.75553
A106: 96 | B106: 0.216219 | C106: 0.24865185 | D106: 0.1729752 | E106: 0.783781 | F106: 3.325001897 | G106: 11505.28879 | H106: 2487.662037 | I106: 10261.45777 | J106: =SUM(I106:$I$130) -> 38255.10706
A107: 97 | B107: 0.234312 | C107: 0.2694588 | D107: 0.1874496 | E107: 0.765688 | F107: 3.104325566 | G107: 9017.626755 | H107: 2112.93816 | I107: 7961.157675 | J107: =SUM(I107:$I$130) -> 27993.64928
A108: 98 | B108: 0.2530805 | C108: 0.291042575 | D108: 0.2024644 | E108: 0.7469195 | F108: 2.901288209 | G108: 6904.688595 | H108: 1747.442042 | I108: 6030.967574 | J108: =SUM(I108:$I$130) -> 20032.49161
A109: 99 | B109: 0.2724855 | C109: 0.313358325 | D109: 0.2179884 | E109: 0.7275145 | F109: 2.71492237 | G109: 5157.246553 | H109: 1405.274906 | I109: 4454.6091 | J109: =SUM(I109:$I$130) -> 14001.52404
A110: 100 | B110: 0.292423 | C110: 0.33628645 | D110: 0.2339384 | E110: 0.707577 | F110: 2.544506151 | G110: 3751.971647 | H110: 1097.162805 | I110: 3203.390245 | J110: =SUM(I110:$I$130) -> 9546.914936
A111: 101 | B111: 0.3127025 | C111: 0.359607875 | D111: 0.250162 | E111: 0.6872975 | F111: 2.389446875 | G111: 2654.808842 | H111: 830.165362 | I111: 2239.726161 | J111: =SUM(I111:$I$130) -> 6343.524691
A112: 102 | B112: 0.3330215 | C112: 0.382974725 | D112: 0.2664172 | E112: 0.6669785 | F112: 2.249096097 | G112: 1824.64348 | H112: 607.6455088 | I112: 1520.820726 | J112: =SUM(I112:$I$130) -> 4103.79853
A113: 103 | B113: 0.353212 | C113: 0.4061938 | D113: 0.2825696 | E113: 0.646788 | F113: 2.122417509 | G113: 1216.997972 | H113: 429.8582875 | I113: 1002.068828 | J113: =SUM(I113:$I$130) -> 2582.977804
A114: 104 | B114: 0.373107 | C114: 0.42907305 | D114: 0.2984856 | E114: 0.626893 | F114: 2.008422403 | G114: 787.139684 | H114: 293.6873261 | I114: 640.296021 | J114: =SUM(I114:$I$130) -> 1580.908976
A115: 105 | B115: 0.392552 | C115: 0.4514348 | D115: 0.3140416 | E115: 0.607448 | F115: 1.906187983 | G115: 493.4523579 | H115: 193.70571 | I115: 396.5995029 | J115: =SUM(I115:$I$130) -> 940.6129548
A116: 106 | B116: 0.411403 | C116: 0.47311345 | D116: 0.3291224 | E116: 0.588597 | F116: 1.814910878 | G116: 299.7466479 | H116: 123.3166702 | I116: 238.0883128 | J116: =SUM(I116:$I$130) -> 544.0134519
A117: 107 | B117: 0.429538 | C117: 0.4939687 | D117: 0.3436304 | E117: 0.570462 | F117: 1.733974821 | G117: 176.4299777 | H117: 75.78337977 | I117: 138.5382878 | J117: =SUM(I117:$I$130) -> 305.9251391
A118: 108 | B118: 0.446852 | C118: 0.5138798 | D118: 0.3574816 | E118: 0.553148 | F118: 1.663114846 | G118: 100.646598 | H118: 44.97413359 | I118: 78.15953116 | J118: =SUM(I118:$I$130) -> 167.3868512
A119: 109 | B119: 0.4632655 | C119: 0.532755325 | D119: 0.3706124 | E119: 0.5367345 | F119: 1.602719066 | G119: 55.67246436 | H119: 25.79113204 | I119: 42.77689834 | J119: =SUM(I119:$I$130) -> 89.22732009
A120: 110 | B120: 0.4787185 | C120: 0.550526275 | D120: 0.3829748 | E120: 0.5212815 | F120: 1.55449634 | G120: 29.88133232 | H120: 14.30474659 | I120: 22.72895903 | J120: =SUM(I120:$I$130) -> 46.45042175
A121: 111 | B121: 0.489302 | C121: 0.5626973 | D121: 0.3914416 | E121: 0.510698 | F121: 1.522892315 | G121: 15.57658574 | H121: 7.621654554 | I121: 11.76575846 | J121: =SUM(I121:$I$130) -> 23.72146271
A122: 112 | B122: 0.4965685 | C122: 0.571053775 | D122: 0.3972548 | E122: 0.5034315 | F122: 1.502929941 | G122: 7.954931182 | H122: 3.950168245 | I122: 5.97984706 | J122: =SUM(I122:$I$130) -> 11.95570426
A123: 113 | B123: 0.5 | C123: 0.575 | D123: 0.4 | E123: 0.5 | F123: 1.4921875 | G123: 4.004762937 | H123: 2.002381469 | I123: 3.003572203 | J123: =SUM(I123:$I$130) -> 5.975857196
A124: 114 | B124: 0.5 | C124: 0.575 | D124: 0.4 | E124: 0.5 | F124: 1.484375 | G124: 2.002381469 | H124: 1.001190734 | I124: 1.501786102 | J124: =SUM(I124:$I$130) -> 2.972284993
A125: 115 | B125: 0.5 | C125: 0.575 | D125: 0.4 | E125: 0.5 | F125: 1.46875 | G125: 1.001190734 | H125: 0.5005953672 | I125: 0.7508930508 | J125: =SUM(I125:$I$130) -> 1.470498891
A126: 116 | B126: 0.5 | C126: 0.575 | D126: 0.4 | E126: 0.5 | F126: 1.4375 | G126: 0.5005953672 | H126: 0.2502976836 | I126: 0.3754465254 | J126: =SUM(I126:$I$130) -> 0.7196058403
A127: 117 | B127: 0.5 | C127: 0.575 | D127: 0.4 | E127: 0.5 | F127: 1.375 | G127: 0.2502976836 | H127: 0.1251488418 | I127: 0.1877232627 | J127: =SUM(I127:$I$130) -> 0.3441593149
A128: 118 | B128: 0.5 | C128: 0.575 | D128: 0.4 | E128: 0.5 | F128: 1.25 | G128: 0.1251488418 | H128: 0.0625744209 | I128: 0.09386163135 | J128: =SUM(I128:$I$130) -> 0.1564360522
A129: 119 | B129: 0.5 | C129: 0.575 | D129: 0.4 | E129: 0.5 | F129: 1 | G129: 0.0625744209 | H129: 0.03128721045 | I129: 0.04693081567 | J129: =SUM(I129:$I$130) -> 0.0625744209
A130: 120 | B130: 1 | C130: 1.15 | D130: 0.8 | E130: 0 | F130: 0.5 | G130: 0.03128721045 | H130: 0.03128721045 | I130: 0.01564360522 | J130: =SUM(I130:$I$130) -> 0.01564360522

Sheet 3a. US
A1: SOA Research Institute
A2: Regulatory Capital Adequacy for Life Insurance Companies Example
A3: US RBC Calculation
A6: Authorized Control Level Risk-Based Capital | B6: Base | F6: Riskier Assets | J6: Change Liability Mix
B7: Pre-Tax | C7: Tax | D7: Post-Tax | F7: Pre-Tax | G7: Tax | H7: Post-Tax | J7: Pre-Tax | K7: Tax | L7: Post-Tax | M7: Explanations
A8: Net (C-0) - Asset Risk - Affiliated Amounts | B8: ='2b. Inputs - Assets'!B12 -> 0 | C8: =B8*'2a.i Inputs - US Factors'!$B$39 -> 0 | D8: =B8-C8 -> 0 | F8: ='2b. Inputs - Assets'!B12 -> 0 | G8: =F8*'2a.i Inputs - US Factors'!$B$39 -> 0 | H8: =F8-G8 -> 0 | J8: ='2b. Inputs - Assets'!B12 -> 0 | K8: =J8*'2a.i Inputs - US Factors'!$B$39 -> 0 | L8: =J8-K8 -> 0
A9: Net (C-1cs) - Asset Risk – Unaffiliated Common Stock | B9: =SUM('2b. Inputs - Assets'!B20:B21)*'2a.i Inputs - US Factors'!B17 -> 245000 | C9: =B9*'2a.i Inputs - US Factors'!$B$39 -> 51450 | D9: 193550 | F9: =SUM('2b. Inputs - Assets'!H20:H21)*'2a.i Inputs - US Factors'!B17 -> 2548000 | G9: =F9*'2a.i Inputs - US Factors'!$B$39 -> 535080 | H9: 2012920 | J9: =SUM('2b. Inputs - Assets'!B20:B21)*'2a.i Inputs - US Factors'!B17 -> 245000 | K9: =J9*'2a.i Inputs - US Factors'!$B$39 -> 51450 | L9: 193550
A10: Net (C-1o) - Asset Risk - All Other | B10: =SUM('2b. Inputs - Assets'!B16:B17)*'2a.i Inputs - US Factors'!C10+'2b. Inputs - Assets'!B18*'2a.i Inputs - US Factors'!C13+'2b. Inputs - Assets'!B19*'2a.i Inputs - US Factors'!B16 -> 375750 | C10: =B10*'2a.i Inputs - US Factors'!$B$39 -> 78907.5 | D10: 296842.5 | F10: =SUM('2b. Inputs - Assets'!H16:H17)*'2a.i Inputs - US Factors'!C10+'2b. Inputs - Assets'!H18*'2a.i Inputs - US Factors'!C13+'2b. Inputs - Assets'!B19*'2a.i Inputs - US Factors'!B16 -> 261020 | G10: =F10*'2a.i Inputs - US Factors'!$B$39 -> 54814.2 | H10: 206205.8 | J10: =SUM('2b. Inputs - Assets'!B16:B17)*'2a.i Inputs - US Factors'!C10+'2b. Inputs - Assets'!B18*'2a.i Inputs - US Factors'!C13+'2b. Inputs - Assets'!B19*'2a.i Inputs - US Factors'!B16 -> 375750 | K10: =J10*'2a.i Inputs - US Factors'!$B$39 -> 78907.5 | L10: 296842.5
A11: Net (C-2) - Insurance Risk | B11: =MAX(ROUND(IF('2c. Inputs - Liabilities'!$K$19<'2a.i Inputs - US Factors'!$A$27,'2c. Inputs - Liabilities'!$K$19*'2a.i Inputs - US Factors'!$B$27,IF('2c. Inputs - Liabilities'!$K$19<'2a.i Inputs - US Factors'!$A$28,SUM('2a.i Inputs - US Factors'!$C$27:'2a.i Inputs - US Factors'!$C27)+('2c. Inputs - Liabilities'!$K$19-'2a.i Inputs - US Factors'!$A$27)*'2a.i Inputs - US Factors'!$B$28,IF('2c. Inputs - Liabilities'!$K$19<'2a.i Inputs - US Factors'!$A$29,SUM('2a.i Inputs - US Factors'!$C$27:'2a.i Inputs - US Factors'!$C28)+('2c. Inputs - Liabilities'!$K$19-'2a.i Inputs - US Factors'!$A$28)*'2a.i Inputs - US Factors'!$B$29,SUM('2a.i Inputs - US Factors'!$C$27:'2a.i Inputs - US Factors'!$C29)+('2c. Inputs - Liabilities'!$K$19-'2a.i Inputs - US Factors'!$A$29)*'2a.i Inputs - US Factors'!$B$30))),0),0) -> 386129 | C11: =B11*'2a.i Inputs - US Factors'!$B$39 -> 81087.09 | D11: 305041.91 | F11: =MAX(ROUND(IF('2c. Inputs - Liabilities'!$K$19<'2a.i Inputs - US Factors'!$A$27,'2c. Inputs - Liabilities'!$K$19*'2a.i Inputs - US Factors'!$B$27,IF('2c. Inputs - Liabilities'!$K$19<'2a.i Inputs - US Factors'!$A$28,SUM('2a.i Inputs - US Factors'!$C$27:'2a.i Inputs - US Factors'!$C27)+('2c. Inputs - Liabilities'!$K$19-'2a.i Inputs - US Factors'!$A$27)*'2a.i Inputs - US Factors'!$B$28,IF('2c. Inputs - Liabilities'!$K$19<'2a.i Inputs - US Factors'!$A$29,SUM('2a.i Inputs - US Factors'!$C$27:'2a.i Inputs - US Factors'!$C28)+('2c. Inputs - Liabilities'!$K$19-'2a.i Inputs - US Factors'!$A$28)*'2a.i Inputs - US Factors'!$B$29,SUM('2a.i Inputs - US Factors'!$C$27:'2a.i Inputs - US Factors'!$C29)+('2c. Inputs - Liabilities'!$K$19-'2a.i Inputs - US Factors'!$A$29)*'2a.i Inputs - US Factors'!$B$30))),0),0) -> 386129 | G11: =F11*'2a.i Inputs - US Factors'!$B$39 -> 81087.09 | H11: 305041.91 | J11: =MAX(ROUND(IF('2c. Inputs - Liabilities'!$K$30<'2a.i Inputs - US Factors'!$A$27,'2c. Inputs - Liabilities'!$K$30*'2a.i Inputs - US Factors'!$B$27,IF('2c. Inputs - Liabilities'!$K$30<'2a.i Inputs - US Factors'!$A$28,SUM('2a.i Inputs - US Factors'!$C$27:'2a.i Inputs - US Factors'!$C27)+('2c. Inputs - Liabilities'!$K$30-'2a.i Inputs - US Factors'!$A$27)*'2a.i Inputs - US Factors'!$B$28,IF('2c. Inputs - Liabilities'!$K$30<'2a.i Inputs - US Factors'!$A$29,SUM('2a.i Inputs - US Factors'!$C$27:'2a.i Inputs - US Factors'!$C28)+('2c. Inputs - Liabilities'!$K$30-'2a.i Inputs - US Factors'!$A$28)*'2a.i Inputs - US Factors'!$B$29,SUM('2a.i Inputs - US Factors'!$C$27:'2a.i Inputs - US Factors'!$C29)+('2c. Inputs - Liabilities'!$K$30-'2a.i Inputs - US Factors'!$A$29)*'2a.i Inputs - US Factors'!$B$30))),0),0) -> 193159 | K11: =J11*'2a.i Inputs - US Factors'!$B$39 -> 40563.39 | L11: 152595.61
A12: Net (C-3a) - Interest Rate Risk | B12: =SUMPRODUCT('2c. Inputs - Liabilities'!H19:H20,'2a.i Inputs - US Factors'!C21:C22) -> 657812.255 | C12: =B12*'2a.i Inputs - US Factors'!$B$39 -> 138140.5735 | D12: 519671.6814 | F12: =SUMPRODUCT('2c. Inputs - Liabilities'!H19:H20,'2a.i Inputs - US Factors'!C21:C22) -> 657812.255 | G12: =F12*'2a.i Inputs - US Factors'!$B$39 -> 138140.5735 | H12: 519671.6814 | J12: =SUMPRODUCT('2c. Inputs - Liabilities'!H30:H31,'2a.i Inputs - US Factors'!C21:C22) -> 438684.902 | K12: =J12*'2a.i Inputs - US Factors'!$B$39 -> 92123.82942 | L12: 346561.0726
A13: Net (C-3b) - Health Credit Risk | B13: 0 | C13: =B13*'2a.i Inputs - US Factors'!$B$39 -> 0 | D13: 0 | F13: 0 | G13: =F13*'2a.i Inputs - US Factors'!$B$39 -> 0 | H13: 0 | J13: 0 | K13: =J13*'2a.i Inputs - US Factors'!$B$39 -> 0 | L13: 0
A14: Net (C-3c) - Market Risk | B14: ='2a.i Inputs - US Factors'!B19 -> 0 | C14: =B14*'2a.i Inputs - US Factors'!$B$39 -> 0 | D14: 0 | F14: ='2a.i Inputs - US Factors'!F19 -> 0 | G14: =F14*'2a.i Inputs - US Factors'!$B$39 -> 0 | H14: 0 | J14: ='2a.i Inputs - US Factors'!J19 -> 0 | K14: =J14*'2a.i Inputs - US Factors'!$B$39 -> 0 | L14: 0
A15: Net (C-4a) - Premium | B15: =(SUMIF('2c. Inputs - Liabilities'!$B$19:$B$21,"Life",'2c. Inputs - Liabilities'!$J$19:$J$21)+SUMIF('2c. Inputs - Liabilities'!$B$19:$B$21,"Annuity",'2c. Inputs - Liabilities'!$J$19:$J$21)) * '2a.i Inputs - US Factors'!$B$35 + SUMIF('2c. Inputs - Liabilities'!$B$19:$B$21,"Health",'2c. Inputs - Liabilities'!$J$19:$J$21) * '2a.i Inputs - US Factors'!B36 -> 49574.02246 | C15: =B15*'2a.i Inputs - US Factors'!$B$39 -> 10410.54472 | D15: 39163.47774 | F15: =(SUMIF('2c. Inputs - Liabilities'!$B$19:$B$21,"Life",'2c. Inputs - Liabilities'!$J$19:$J$21)+SUMIF('2c. Inputs - Liabilities'!$B$19:$B$21,"Annuity",'2c. Inputs - Liabilities'!$J$19:$J$21)) * '2a.i Inputs - US Factors'!$B$35 + SUMIF('2c. Inputs - Liabilities'!$B$19:$B$21,"Health",'2c. Inputs - Liabilities'!$J$19:$J$21) * '2a.i Inputs - US Factors'!F36 -> 49574.02246 | G15: =F15*'2a.i Inputs - US Factors'!$B$39 -> 10410.54472 | H15: 39163.47774 | J15: =(SUMIF('2c. Inputs - Liabilities'!$B$30:$B$32,"Life",'2c. Inputs - Liabilities'!$J$30:$J$32)+SUMIF('2c. Inputs - Liabilities'!$B$30:$B$32,"Annuity",'2c. Inputs - Liabilities'!$J$30:$J$32)) * '2a.i Inputs - US Factors'!$B$35 + SUMIF('2c. Inputs - Liabilities'!$B$30:$B$32,"Health",'2c. Inputs - Liabilities'!$J$30:$J$32) * '2a.i Inputs - US Factors'!B36 -> 55568.97427 | K15: =J15*'2a.i Inputs - US Factors'!$B$39 -> 11669.4846 | L15: 43899.48968
A16: Net (C-4a) - Liability | B16: ='2c. Inputs - Liabilities'!$I$21*'2a.i Inputs - US Factors'!$B$37 -> 0 | C16: =B16*'2a.i Inputs - US Factors'!$B$39 -> 0 | D16: 0 | F16: ='2c. Inputs - Liabilities'!$I$21*'2a.i Inputs - US Factors'!$B$37 -> 0 | G16: =F16*'2a.i Inputs - US Factors'!$B$39 -> 0 | H16: 0 | J16: ='2c. Inputs - Liabilities'!$I$21*'2a.i Inputs - US Factors'!$B$37 -> 0 | K16: =J16*'2a.i Inputs - US Factors'!$B$39 -> 0 | L16: 0
A17: Net (C-4a) - Business Risk | B17: =SUM(B15:B16) -> 49574.02246 | C17: =SUM(C15:C16) -> 10410.54472 | D17: =SUM(D15:D16) -> 39163.47774 | F17: =SUM(F15:F16) -> 49574.02246 | G17: =SUM(G15:G16) -> 10410.54472 | H17: =SUM(H15:H16) -> 39163.47774 | J17: =SUM(J15:J16) -> 55568.97427 | K17: =SUM(K15:K16) -> 11669.4846 | L17: =SUM(L15:L16) -> 43899.48968
A18: Net (C-4b) - Health Administrative Expense Business Risk | B18: 0 | C18: =B18*'2a.i Inputs - US Factors'!$B$39 -> 0 | D18: =B18-C18 -> 0 | F18: 0 | G18: =F18*'2a.i Inputs - US Factors'!$B$39 -> 0 | H18: =F18-G18 -> 0 | J18: 0 | K18: =J18*'2a.i Inputs - US Factors'!$B$39 -> 0 | L18: =J18-K18 -> 0
A20: Total Risk-Based Capital After Covariance | B20: =ROUND(B8+B17+(((B10+B12)^2+(B9+B14)^2+B11^2+B13^2+B18^2)^0.5),0) -> 1179783 | D20: =ROUND(D8+D17+(((D10+D12)^2+(D9+D14)^2+D11^2+D13^2+D18^2)^0.5),0) -> 932028 | F20: =ROUND(F8+F17+(((F10+F12)^2+(F9+F14)^2+F11^2+F13^2+F18^2)^0.5),0) -> 2785566 | H20: =ROUND(H8+H17+(((H10+H12)^2+(H9+H14)^2+H11^2+H13^2+H18^2)^0.5),0) -> 2200597 | J20: =ROUND(J8+J17+(((J10+J12)^2+(J9+J14)^2+J11^2+J13^2+J18^2)^0.5),0) -> 927716 | L20: =ROUND(L8+L17+(((L10+L12)^2+(L9+L14)^2+L11^2+L13^2+L18^2)^0.5),0) -> 732895
A22: Authorized Control Level Risk-Based Capital | B22: =ROUND(B20*'2a.i Inputs - US Factors'!$B$40,0) -> 589892 | D22: =ROUND(D20*'2a.i Inputs - US Factors'!$B$40,0) -> 466014 | F22: =ROUND(F20*'2a.i Inputs - US Factors'!$B$40,0) -> 1392783 | H22: =ROUND(H20*'2a.i Inputs - US Factors'!$B$40,0) -> 1100299 | J22: =ROUND(J20*'2a.i Inputs - US Factors'!$B$40,0) -> 463858 | L22: =ROUND(L20*'2a.i Inputs - US Factors'!$B$40,0) -> 366448 | M22: This is the minimum amount of capital that a U.S. insurer is required to hold.
A24: Total Adjusted Capital
A25: Capital and Surplus | B25: =B56 -> 3876983.702 | E25: =E56 -> 0 | F25: 3876983.702 | J25: =J56 -> 3876983.702
A26: Asset Valuation Reserve | B26: ='2c. Inputs - Liabilities'!B23 -> 50000 | F26: ='2c. Inputs - Liabilities'!B23 -> 50000 | J26: ='2c. Inputs - Liabilities'!B23 -> 50000
A27: Dividends Apportioned for Payment - Adjusted | B27: ='2c. Inputs - Liabilities'!B24/2 -> 15000 | F27: ='2c. Inputs - Liabilities'!B24/2 -> 15000 | J27: ='2c. Inputs - Liabilities'!B24/2 -> 15000
A28: Dividends Not Yet Apportioned | B28: ='2c. Inputs - Liabilities'!B25 -> 0 | F28: ='2c. Inputs - Liabilities'!B25 -> 0 | J28: ='2c. Inputs - Liabilities'!M25 -> 0
A29: Hedging Fair Value Adjustment | B29: ='2c. Inputs - Liabilities'!B26 -> 0 | F29: ='2c. Inputs - Liabilities'!B26 -> 0 | J29: ='2c. Inputs - Liabilities'!M26 -> 0
A31: Total Adjusted Capital Before Capital Notes | B31: =SUM(B25:B29) -> 3941983.702 | F31: =SUM(F25:F29) -> 3941983.702 | J31: =SUM(J25:J29) -> 3941983.702 | M31: This is the amount of capital that the U.S. insurer for this example is actually holding.
A33: RBC Ratio | B33: =IFERROR(B31/D20,0) -> 4.229469181 | F33: =IFERROR(F31/H20,0) -> 1.791324673 | J33: =IFERROR(J31/L20,0) -> 5.378647285
A35: Balance Sheet
A37: Assets
A38: ='2b. Inputs - Assets'!A16 -> Fixed Income 1 | B38: ='2b. Inputs - Assets'!B16 -> 7000000 | F38: ='2b. Inputs - Assets'!H16 -> 1820000 | J38: =B38 -> 7000000
A39: ='2b. Inputs - Assets'!A17 -> Fixed Income 2 | B39: ='2b. Inputs - Assets'!B17 -> 7000000 | F39: ='2b. Inputs - Assets'!H17 -> 1820000 | J39: =B39 -> 7000000
A40: ='2b. Inputs - Assets'!A18 -> Mortgages | B40: ='2b. Inputs - Assets'!B18 -> 2500000 | F40: ='2b. Inputs - Assets'!H18 -> 3640000 | J40: 2500000
A41: ='2b. Inputs - Assets'!A19 -> Real Estate | B41: ='2b. Inputs - Assets'!B19 -> 1000000 | F41: ='2b. Inputs - Assets'!H19 -> 3640000 | J41: 1000000
A42: ='2b. Inputs - Assets'!A20 -> Equity (Stocks in OECD or EEA countries) | B42: ='2b. Inputs - Assets'!B20 -> 500000 | F42: ='2b. Inputs - Assets'!H20 -> 3640000 | J42: 500000
A43: ='2b. Inputs - Assets'!A21 -> Equity (Stocks in emerging markets) | B43: ='2b. Inputs - Assets'!B21 -> 200000 | F43: ='2b. Inputs - Assets'!H21 -> 3640000 | J43: 200000
A44: Total Assets | B44: =SUM(B38:B43) -> 18200000 | F44: =SUM(F38:F43) -> 18200000 | J44: =SUM(J38:J43) -> 18200000
A46: Liabilities
A47: Reserves | B47: ='2c. Inputs - Liabilities'!H21 -> 14243016.3 | F47: ='2c. Inputs - Liabilities'!H21 -> 14243016.3 | J47: ='2c. Inputs - Liabilities'!H32 -> 14243016.3
A48: Separate Account Liabilities | B48: ='2c. Inputs - Liabilities'!I20 -> 0 | E48: ='2c. Inputs - Liabilities'!L20 -> 7500000 | F48: ='2c. Inputs - Liabilities'!I20 -> 0 | J48: ='2c. Inputs - Liabilities'!Q20 -> 0
A49: Asset Valuation Reserve | B49: ='2c. Inputs - Liabilities'!B23 -> 50000 | F49: ='2c. Inputs - Liabilities'!B23 -> 50000 | J49: ='2c. Inputs - Liabilities'!B23 -> 50000
A50: Dividend Liability | B50: ='2c. Inputs - Liabilities'!B24 -> 30000 | F50: ='2c. Inputs - Liabilities'!B24 -> 30000 | J50: ='2c. Inputs - Liabilities'!B24 -> 30000
A51: Total Liabilities | B51: =SUM(B47:B50) -> 14323016.3 | F51: =SUM(F47:F50) -> 14323016.3 | J51: =SUM(J47:J50) -> 14323016.3
A53: Surplus
A54: Required | B54: =D22 -> 466014 | F54: =H22 -> 1100299 | J54: =L22 -> 366448
A55: Free | B55: =B56-B54 -> 3410969.702 | F55: =F56-F54 -> 2776684.702 | J55: =J56-J54 -> 3510535.702
A56: Total Surplus | B56: =B44-B51 -> 3876983.702 | F56: =F44-F51 -> 3876983.702 | J56: =J44-J51 -> 3876983.702

Sheet 3b. Canada
A1: SOA Research Institute
A2: Regulatory Capital Adequacy for Life Insurance Companies Example
A3: Canadian LICAT Calculation
A5: Base Scenario | N5: Riskier Assets Scenario | X5: Change Liability Mix Scenario
A6: Aggregate Capital Requirement | I6: Level and Trend Component | J6: Total - 0.5 Level and Trend Component | U6: Level and Trend Component | V6: Total - 0.5 Level and Trend Component | AE6: Level and Trend Component | AF6: Total - 0.5 Level and Trend Component
A7: Geographic Region | B7: Canada | C7: U.S. | D7: United Kingdom | E7: Europe other than the United Kingdom | F7: Japan | G7: Other | H7: Total | L7: Assume business is only in Canada | N7: Canada | O7: U.S. | P7: United Kingdom | Q7: Europe other than the United Kingdom | R7: Japan | S7: Other | T7: Total | X7: Canada | Y7: U.S. | Z7: United Kingdom | AA7: Europe other than the United Kingdom | AB7: Japan | AC7: Other | AD7: Total
A8: Credit Risk | B8: ='2b. Inputs - Assets'!$B$16*'2a.ii Inputs - Canada Factors'!$F$26+('2b. Inputs - Assets'!$B$17+'2b. Inputs - Assets'!$B$18)*'2a.ii Inputs - Canada Factors'!$G$26 -> 253750 | C8: 0 | D8: 0 | E8: 0 | F8: 0 | G8: 0 | H8: =SUM(B8:G8) -> 253750 | L8: Assume there is no Deferred Tax Assets and off-balance sheet activities. Assumed the mortgages are AA 10-year. | N8: ='2b. Inputs - Assets'!$H$16*'2a.ii Inputs - Canada Factors'!$F$26+('2b. Inputs - Assets'!$H$17+'2b. Inputs - Assets'!$H$18)*'2a.ii Inputs - Canada Factors'!$G$26 -> 118300 | O8: 0 | P8: 0 | Q8: 0 | R8: 0 | S8: 0 | T8: =SUM(N8:S8) -> 118300 | X8: ='2b. Inputs - Assets'!$B$16*'2a.ii Inputs - Canada Factors'!$F$26+('2b. Inputs - Assets'!$B$17+'2b. Inputs - Assets'!$B$18)*'2a.ii Inputs - Canada Factors'!$G$26 -> 253750 | Y8: 0 | Z8: 0 | AA8: 0 | AB8: 0 | AC8: 0 | AD8: =SUM(X8:AC8) -> 253750
A9: Market Risk | B9: =SUM(B10:B17) -> 1675360.413 | C9: =SUM(C10:C17) -> 0 | D9: 0 | E9: 0 | F9: 0 | G9: 0 | H9: =SUM(B9:G9) -> 1675360.413 | L9: No preferred shares or convertible bonds | N9: =SUM(N10:N17) -> 5022953.73 | O9: =SUM(O10:O17) -> 0 | P9: 0 | Q9: 0 | R9: 0 | S9: 0 | T9: =SUM(N9:S9) -> 5022953.73 | X9: =SUM(X10:X17) -> 819399.0112 | Y9: =SUM(Y10:Y17) -> 0 | Z9: 0 | AA9: 0 | AB9: 0 | AC9: 0 | AD9: =SUM(X9:AC9) -> 819399.0112
A10: Interest Rate Risk | B10: ='3c. Europe'!B9 -> 1410360.413 | C10: 0 | D10: 0 | E10: 0 | F10: 0 | G10: 0 | H10: 1410360.413 | L10: Assume the same as European Interest Rate Risk | N10: ='3c. Europe'!D9 -> 2110953.73 | O10: 0 | P10: 0 | Q10: 0 | R10: 0 | S10: 0 | T10: 2110953.73 | X10: ='3c. Europe'!F9 -> 554399.0112 | Y10: 0 | Z10: 0 | AA10: 0 | AB10: 0 | AC10: 0 | AD10: 554399.0112
A11: Equity Risk | B11: ='2b. Inputs - Assets'!$C$20*'2a.ii Inputs - Canada Factors'!$B$35+'2b. Inputs - Assets'!$C$21*'2a.ii Inputs - Canada Factors'!$B$37 -> 265000 | C11: 0 | D11: 0 | E11: 0 | F11: 0 | G11: 0 | H11: 265000 | N11: ='2b. Inputs - Assets'!$I$20*'2a.ii Inputs - Canada Factors'!$B$35+'2b. Inputs - Assets'!$I$21*'2a.ii Inputs - Canada Factors'!$B$37 -> 2912000 | O11: 0 | P11: 0 | Q11: 0 | R11: 0 | S11: 0 | T11: 2912000 | X11: ='2b. Inputs - Assets'!$C$20*'2a.ii Inputs - Canada Factors'!$B$35+'2b. Inputs - Assets'!$C$21*'2a.ii Inputs - Canada Factors'!$B$37 -> 265000 | Y11: 0 | Z11: 0 | AA11: 0 | AB11: 0 | AC11: 0 | AD11: 265000
A12: Real Estate Risk | B12: ='2a.ii Inputs - Canada Factors'!$B$42*'2b. Inputs - Assets'!$B$19 -> 0 | C12: 0 | D12: 0 | E12: 0 | F12: 0 | G12: 0 | H12: 0 | N12: ='2a.ii Inputs - Canada Factors'!$B$42*'2b. Inputs - Assets'!$H$19 -> 0 | O12: 0 | P12: 0 | Q12: 0 | R12: 0 | S12: 0 | T12: 0 | X12: ='2a.ii Inputs - Canada Factors'!$B$42*'2b. Inputs - Assets'!$B$19 -> 0 | Y12: 0 | Z12: 0 | AA12: 0 | AB12: 0 | AC12: 0 | AD12: 0
A13: Mutual Funds | B13: 0 | C13: 0 | D13: 0 | E13: 0 | F13: 0 | G13: 0 | H13: 0 | L13: Assume no Mutual Funds | N13: 0 | O13: 0 | P13: 0 | Q13: 0 | R13: 0 | S13: 0 | T13: 0 | X13: 0 | Y13: 0 | Z13: 0 | AA13: 0 | AB13: 0 | AC13: 0 | AD13: 0
A14: Index-linked Products Risk | B14: 0 | C14: 0 | D14: 0 | E14: 0 | F14: 0 | G14: 0 | H14: 0 | L14: Assume no Index-linked Products risk | N14: 0 | O14: 0 | P14: 0 | Q14: 0 | R14: 0 | S14: 0 | T14: 0 | X14: 0 | Y14: 0 | Z14: 0 | AA14: 0 | AB14: 0 | AC14: 0 | AD14: 0
A15: Currency Risk | B15: 0 | C15: 0 | D15: 0 | E15: 0 | F15: 0 | G15: 0 | H15: 0 | L15: Assume no Currency risk | N15: 0 | O15: 0 | P15: 0 | Q15: 0 | R15: 0 | S15: 0 | T15: 0 | X15: 0 | Y15: 0 | Z15: 0 | AA15: 0 | AB15: 0 | AC15: 0 | AD15: 0
A16: Unregistered reinsurance | B16: 0 | C16: 0 | D16: 0 | E16: 0 | F16: 0 | G16: 0 | H16: 0 | L16: Assume no Unregistered reinsurance | N16: 0 | O16: 0 | P16: 0 | Q16: 0 | R16: 0 | S16: 0 | T16: 0 | X16: 0 | Y16: 0 | Z16: 0 | AA16: 0 | AB16: 0 | AC16: 0 | AD16: 0
A17: Foreign exchange de minimus criteria | B17: 0 | C17: 0 | D17: 0 | E17: 0 | F17: 0 | G17: 0 | H17: 0 | L17: Assume no Foreign exchange de minimus criteria | N17: 0 | O17: 0 | P17: 0 | Q17: 0 | R17: 0 | S17: 0 | T17: 0 | X17: 0 | Y17: 0 | Z17: 0 | AA17: 0 | AB17: 0 | AC17: 0 | AD17: 0
A18: Insurance Risk | B18: =SUM(B19:B25) -> 2545000 | C18: =SUM(C19:C25) -> 0 | D18: =SUM(D19:D25) -> 0 | E18: =SUM(E19:E25) -> 0 | F18: =SUM(F19:F25) -> 0 | G18: =SUM(G19:G25) -> 0 | H18: =SUM(H19:H25) -> 2545000 | I18: =SUM(I19:I23) -> 1779000 | J18: =MAX((J19^2+J20^2+J21^2+J22^2+J23^2+2*('2a.ii Inputs - Canada Factors'!$B$63*J19*J20+$B$67*J19*J21+'2a.ii Inputs - Canada Factors'!$B$67*J19*J22+'2a.ii Inputs - Canada Factors'!$B$68*J19*J23+$C$67*J20*J21+'2a.ii Inputs - Canada Factors'!$C$67*J20*J22+'2a.ii Inputs - Canada Factors'!$C$68*J20*J23+'2a.ii Inputs - Canada Factors'!$E$67*J21*J22+'2a.ii Inputs - Canada Factors'!$E$68*J21*J23+'2a.ii Inputs - Canada Factors'!$G$68*J22*J23))^(1/2),J19) -> 1626963.89 | N18: =SUM(N19:N25) -> 2545000 | O18: =SUM(O19:O25) -> 0 | P18: =SUM(P19:P25) -> 0 | Q18: =SUM(Q19:Q25) -> 0 | R18: =SUM(R19:R25) -> 0 | S18: =SUM(S19:S25) -> 0 | T18: =SUM(T19:T25) -> 2545000 | U18: =SUM(U19:U23) -> 1779000 | V18: =MAX((V19^2+V20^2+V21^2+V22^2+V23^2+2*('2a.ii Inputs - Canada Factors'!$B$63*V19*V20+$B$67*V19*V21+'2a.ii Inputs - Canada Factors'!$B$67*V19*V22+'2a.ii Inputs - Canada Factors'!$B$68*V19*V23+$C$67*V20*V21+'2a.ii Inputs - Canada Factors'!$C$67*V20*V22+'2a.ii Inputs - Canada Factors'!$C$68*V20*V23+'2a.ii Inputs - Canada Factors'!$E$67*V21*V22+'2a.ii Inputs - Canada Factors'!$E$68*V21*V23+'2a.ii Inputs - Canada Factors'!$G$68*V22*V23))^(1/2),V19) -> 1626963.89 | X18: =SUM(X19:X25) -> 1092500 | Y18: =SUM(Y19:Y25) -> 0 | Z18: 0 | AA18: 0 | AB18: 0 | AC18: 0 | AD18: 1092500 | AE18: =SUM(AE19:AE23) -> 778000 | AF18: =MAX((AF19^2+AF20^2+AF21^2+AF22^2+AF23^2+2*('2a.ii Inputs - Canada Factors'!$B$63*AF19*AF20+$B$67*AF19*AF21+'2a.ii Inputs - Canada Factors'!$B$67*AF19*AF22+'2a.ii Inputs - Canada Factors'!$B$68*AF19*AF23+$C$67*AF20*AF21+'2a.ii Inputs - Canada Factors'!$C$67*AF20*AF22+'2a.ii Inputs - Canada Factors'!$C$68*AF20*AF23+'2a.ii Inputs - Canada Factors'!$E$67*AF21*AF22+'2a.ii Inputs - Canada Factors'!$E$68*AF21*AF23+'2a.ii Inputs - Canada Factors'!$G$68*AF22*AF23))^(1/2),AF19) -> 650000
A19: Mortality Risk | B19: ='2a.ii Inputs - Canada Factors'!$B$11 -> 2500000 | C19: 0 | D19: 0 | E19: 0 | F19: 0 | G19: 0 | H19: 2500000 | I19: =H19*'2a.ii Inputs - Canada Factors'!$B$72 -> 1750000 | J19: =H19-0.5*I19 -> 1625000 | N19: ='2a.ii Inputs - Canada Factors'!$C$11 -> 2500000 | O19: 0 | P19: 0 | Q19: 0 | R19: 0 | S19: 0 | T19: 2500000 | U19: =T19*'2a.ii Inputs - Canada Factors'!$B$72 -> 1750000 | V19: =T19-0.5*U19 -> 1625000 | X19: ='2a.ii Inputs - Canada Factors'!$D$11 -> 1000000 | Y19: 0 | Z19: 0 | AA19: 0 | AB19: 0 | AC19: 0 | AD19: 1000000 | AE19: =AD19*'2a.ii Inputs - Canada Factors'!$B$72 -> 700000 | AF19: =AD19-0.5*AE19 -> 650000
A20: Longevity Risk | B20: ='2a.ii Inputs - Canada Factors'!$B$12 -> 25000 | C20: 0 | D20: 0 | E20: 0 | F20: 0 | G20: 0 | H20: 25000 | I20: =H20*'2a.ii Inputs - Canada Factors'!$B$73 -> 25000 | J20: =H20-0.5*I20 -> 12500 | N20: ='2a.ii Inputs - Canada Factors'!$C$12 -> 25000 | O20: 0 | P20: 0 | Q20: 0 | R20: 0 | S20: 0 | T20: 25000 | U20: =T20*'2a.ii Inputs - Canada Factors'!$B$73 -> 25000 | V20: =T20-0.5*U20 -> 12500 | X20: ='2a.ii Inputs - Canada Factors'!$D$12 -> 75000 | Y20: 0 | Z20: 0 | AA20: 0 | AB20: 0 | AC20: 0 | AD20: 75000 | AE20: =AD20*'2a.ii Inputs - Canada Factors'!$B$73 -> 75000 | AF20: =AD20-0.5*AE20 -> 37500
A21: Morbidity Risk | B21: 0 | C21: 0 | D21: 0 | E21: 0 | F21: 0 | G21: 0 | H21: 0 | I21: =H21*'2a.ii Inputs - Canada Factors'!$B$74 -> 0 | J21: 0 | N21: 0 | O21: 0 | P21: 0 | Q21: 0 | R21: 0 | S21: 0 | T21: 0 | U21: =T21*'2a.ii Inputs - Canada Factors'!$B$74 -> 0 | V21: 0 | X21: 0 | Y21: 0 | Z21: 0 | AA21: 0 | AB21: 0 | AC21: 0 | AD21: 0 | AE21: =AD21*'2a.ii Inputs - Canada Factors'!$B$74 -> 0 | AF21: 0
A22: Lapse and Policyholder Behaviour Risk | B22: ='2a.ii Inputs - Canada Factors'!$B$13 -> 10000 | C22: 0 | D22: 0 | E22: 0 | F22: 0 | G22: 0 | H22: 10000 | I22: =H22*'2a.ii Inputs - Canada Factors'!$B$75 -> 4000 | J22: 8000 | L22: Assume Lapse risk on Life Product as it is Term. Annuity product is Payout Annuity and will not have any lapse risk | N22: ='2a.ii Inputs - Canada Factors'!$C$13 -> 10000 | O22: 0 | P22: 0 | Q22: 0 | R22: 0 | S22: 0 | T22: 10000 | U22: =T22*'2a.ii Inputs - Canada Factors'!$B$75 -> 4000 | V22: 8000 | X22: ='2a.ii Inputs - Canada Factors'!$D$13 -> 7500 | Y22: 0 | Z22: 0 | AA22: 0 | AB22: 0 | AC22: 0 | AD22: 7500 | AE22: =AD22*'2a.ii Inputs - Canada Factors'!$B$75 -> 3000 | AF22: 6000
A23: Expense Risk | B23: ='2a.ii Inputs - Canada Factors'!$B$14 -> 10000 | C23: 0 | D23: 0 | E23: 0 | F23: 0 | G23: 0 | H23: 10000 | I23: =H23*'2a.ii Inputs - Canada Factors'!$B$76 -> 0 | J23: 10000 | N23: ='2a.ii Inputs - Canada Factors'!$C$14 -> 10000 | O23: 0 | P23: 0 | Q23: 0 | R23: 0 | S23: 0 | T23: 10000 | U23: =T23*'2a.ii Inputs - Canada Factors'!$B$76 -> 0 | V23: 10000 | X23: ='2a.ii Inputs - Canada Factors'!$D$14 -> 10000 | Y23: 0 | Z23: 0 | AA23: 0 | AB23: 0 | AC23: 0 | AD23: 10000 | AE23: =AD23*'2a.ii Inputs - Canada Factors'!$B$76 -> 0 | AF23: 10000
A24: P&C Risk | B24: ='2a.ii Inputs - Canada Factors'!$B$15 -> 0 | C24: 0 | D24: 0 | E24: 0 | F24: 0 | G24: 0 | H24: =SUM(B24:G24) -> 0 | N24: ='2a.ii Inputs - Canada Factors'!$C$15 -> 0 | O24: 0 | P24: 0 | Q24: 0 | R24: 0 | S24: 0 | T24: 0 | X24: ='2a.ii Inputs - Canada Factors'!$D$15 -> 0 | Y24: 0 | Z24: 0 | AA24: 0 | AB24: 0 | AC24: 0 | AD24: 0
A25: Credit for Reinsurance and Special Policyholder Arrangements | B25: ='2a.ii Inputs - Canada Factors'!$B$16 -> 0 | C25: 0 | D25: 0 | E25: 0 | F25: 0 | G25: 0 | H25: 0 | N25: ='2a.ii Inputs - Canada Factors'!$C$16 -> 0 | O25: 0 | P25: 0 | Q25: 0 | R25: 0 | S25: 0 | T25: 0 | X25: ='2a.ii Inputs - Canada Factors'!$D$16 -> 0 | Y25: 0 | Z25: 0 | AA25: 0 | AB25: 0 | AC25: 0 | AD25: 0
A26: Segregated Funds Guarantee Risk | B26: 0 | C26: 0 | D26: 0 | E26: 0 | F26: 0 | G26: 0 | H26: 0 | L26: Assume no guaranteed minimum death and maturity benefits offered for segregated fund guaranteed products | N26: 0 | O26: 0 | P26: 0 | Q26: 0 | R26: 0 | S26: 0 | T26: 0 | X26: 0 | Y26: 0 | Z26: 0 | AA26: 0 | AB26: 0 | AC26: 0 | AD26: 0
A27: Operational Risk | B27: =SUM(B28:B30) -> 257261.3487 | C27: =SUM(C28:C30) -> 0 | D27: 0 | E27: 0 | F27: 0 | G27: 0 | H27: 257261.3487 | N27: =SUM(N28:N30) -> 441959.5895 | O27: =SUM(O28:O30) -> 0 | P27: 0 | Q27: 0 | R27: 0 | S27: 0 | T27: 441959.5895 | X27: =SUM(X28:X30) -> 124524.8181 | Y27: =SUM(Y28:Y30) -> 0 | Z27: 0 | AA27: 0 | AB27: 0 | AC27: 0 | AD27: 124524.8181
A28: Business Volume Required Capital | B28: ='2c. Inputs - Liabilities'!$J$19*'2a.ii Inputs - Canada Factors'!$B$48+'2a.ii Inputs - Canada Factors'!$B$54*'2c. Inputs - Liabilities'!$H$20 -> 0 | C28: 0 | D28: 0 | E28: 0 | F28: 0 | G28: 0 | H28: 0 | N28: ='2c. Inputs - Liabilities'!$J$19*'2a.ii Inputs - Canada Factors'!$B$48+'2a.ii Inputs - Canada Factors'!$B$54*'2c. Inputs - Liabilities'!$H$20 -> 0 | O28: 0 | P28: 0 | Q28: 0 | R28: 0 | S28: 0 | T28: 0 | X28: ='2c. Inputs - Liabilities'!$J$30*'2a.ii Inputs - Canada Factors'!$B$48+'2a.ii Inputs - Canada Factors'!$B$54*'2c. Inputs - Liabilities'!$H$31 -> 0 | Y28: 0 | Z28: 0 | AA28: 0 | AB28: 0 | AC28: 0 | AD28: 0
A29: Large Increase in business volume required capital | B29: 0 | C29: 0 | D29: 0 | E29: 0 | F29: 0 | G29: 0 | H29: 0 | L29: Assume no segregated fund guarantees and no reinsurance | N29: 0 | O29: 0 | P29: 0 | Q29: 0 | R29: 0 | S29: 0 | T29: 0 | X29: 0 | Y29: 0 | Z29: 0 | AA29: 0 | AB29: 0 | AC29: 0 | AD29: 0
A30: General required capital | B30: ='2a.ii Inputs - Canada Factors'!$B$55*SUM(B8,B9,B18)+'2a.ii Inputs - Canada Factors'!$B$56*0+'2a.ii Inputs - Canada Factors'!$B$57*0 -> 257261.3487 | C30: ='2a.ii Inputs - Canada Factors'!$B$55*SUM(C8,C9,C18)+'2a.ii Inputs - Canada Factors'!$B$56*0+'2a.ii Inputs - Canada Factors'!$B$57*0 -> 0 | D30: ='2a.ii Inputs - Canada Factors'!$B$55*SUM(D8,D9,D18)+'2a.ii Inputs - Canada Factors'!$B$56*0+'2a.ii Inputs - Canada Factors'!$B$57*0 -> 0 | E30: ='2a.ii Inputs - Canada Factors'!$B$55*SUM(E8,E9,E18)+'2a.ii Inputs - Canada Factors'!$B$56*0+'2a.ii Inputs - Canada Factors'!$B$57*0 -> 0 | F30: ='2a.ii Inputs - Canada Factors'!$B$55*SUM(F8,F9,F18)+'2a.ii Inputs - Canada Factors'!$B$56*0+'2a.ii Inputs - Canada Factors'!$B$57*0 -> 0 | G30: ='2a.ii Inputs - Canada Factors'!$B$55*SUM(G8,G9,G18)+'2a.ii Inputs - Canada Factors'!$B$56*0+'2a.ii Inputs - Canada Factors'!$B$57*0 -> 0 | H30: 257261.3487 | N30: ='2a.ii Inputs - Canada Factors'!$B$55*SUM(N8,N9,N18)+'2a.ii Inputs - Canada Factors'!$B$56*0+'2a.ii Inputs - Canada Factors'!$B$57*0 -> 441959.5895 | O30: ='2a.ii Inputs - Canada Factors'!$B$55*SUM(O8,O9,O18)+'2a.ii Inputs - Canada Factors'!$B$56*0+'2a.ii Inputs - Canada Factors'!$B$57*0 -> 0 | P30: ='2a.ii Inputs - Canada Factors'!$B$55*SUM(P8,P9,P18)+'2a.ii Inputs - Canada Factors'!$B$56*0+'2a.ii Inputs - Canada Factors'!$B$57*0 -> 0 | Q30: ='2a.ii Inputs - Canada Factors'!$B$55*SUM(Q8,Q9,Q18)+'2a.ii Inputs - Canada Factors'!$B$56*0+'2a.ii Inputs - Canada Factors'!$B$57*0 -> 0 | R30: ='2a.ii Inputs - Canada Factors'!$B$55*SUM(R8,R9,R18)+'2a.ii Inputs - Canada Factors'!$B$56*0+'2a.ii Inputs - Canada Factors'!$B$57*0 -> 0 | S30: ='2a.ii Inputs - Canada Factors'!$B$55*SUM(S8,S9,S18)+'2a.ii Inputs - Canada Factors'!$B$56*0+'2a.ii Inputs - Canada Factors'!$B$57*0 -> 0 | T30: 441959.5895 | X30: ='2a.ii Inputs - Canada Factors'!$B$55*SUM(X8,X9,X18)+'2a.ii Inputs - Canada Factors'!$B$56*0+'2a.ii Inputs - Canada Factors'!$B$57*0 -> 124524.8181 | Y30: ='2a.ii Inputs - Canada Factors'!$B$55*SUM(Y8,Y9,Y18)+'2a.ii Inputs - Canada Factors'!$B$56*0+'2a.ii Inputs - Canada Factors'!$B$57*0 -> 0 | Z30: ='2a.ii Inputs - Canada Factors'!$B$55*SUM(Z8,Z9,Z18)+'2a.ii Inputs - Canada Factors'!$B$56*0+'2a.ii Inputs - Canada Factors'!$B$57*0 -> 0 | AA30: ='2a.ii Inputs - Canada Factors'!$B$55*SUM(AA8,AA9,AA18)+'2a.ii Inputs - Canada Factors'!$B$56*0+'2a.ii Inputs - Canada Factors'!$B$57*0 -> 0 | AB30: ='2a.ii Inputs - Canada Factors'!$B$55*SUM(AB8,AB9,AB18)+'2a.ii Inputs - Canada Factors'!$B$56*0+'2a.ii Inputs - Canada Factors'!$B$57*0 -> 0 | AC30: ='2a.ii Inputs - Canada Factors'!$B$55*SUM(AC8,AC9,AC18)+'2a.ii Inputs - Canada Factors'!$B$56*0+'2a.ii Inputs - Canada Factors'!$B$57*0 -> 0 | AD30: 124524.8181
A31: Sub-Total | B31: =B8+B9+B18+B26+B27 -> 4731371.761 | C31: =C8+C9+C18+C26+C27 -> 0 | D31: 0 | E31: 0 | F31: 0 | G31: 0 | H31: =H8+H9+H18+H26+H27 -> 4731371.761 | N31: =N8+N9+N18+N26+N27 -> 8128213.319 | O31: =O8+O9+O18+O26+O27 -> 0 | P31: 0 | Q31: 0 | R31: 0 | S31: 0 | T31: 8128213.319 | X31: =X8+X9+X18+X26+X27 -> 2290173.829 | Y31: =Y8+Y9+Y18+Y26+Y27 -> 0 | Z31: 0 | AA31: 0 | AB31: 0 | AC31: 0 | AD31: 2290173.829
A32: Market and Credit Risk | B32: =B8+B9 -> 1929110.413 | C32: 0 | D32: 0 | E32: 0 | F32: 0 | G32: 0 | H32: =H8+H9 -> 1929110.413 | N32: =N8+N9 -> 5141253.73 | O32: =O8+O9 -> 0 | P32: 0 | Q32: 0 | R32: 0 | S32: 0 | T32: =T8+T9 -> 5141253.73 | X32: =X8+X9 -> 1073149.011 | Y32: 0 | Z32: 0 | AA32: 0 | AB32: 0 | AC32: 0 | AD32: =AD8+AD9 -> 1073149.011
A33: Diversified Risk Requirement | B33: =(H32^2+H32*J18+J18^2)^(1/2) -> 3083353.931 | C33: 0 | D33: 0 | E33: 0 | F33: 0 | G33: 0 | H33: =SUM(B33:G33) -> 3083353.931 | N33: =(T32^2+T32*V18+V18^2)^(1/2) -> 6119161.346 | O33: 0 | P33: 0 | Q33: 0 | R33: 0 | S33: 0 | T33: =SUM(N33:S33) -> 6119161.346 | X33: =(AD32^2+AD32*AF18+AF18^2)^(1/2) -> 1507214.536 | Y33: 0 | Z33: 0 | AA33: 0 | AB33: 0 | AC33: 0 | AD33: =SUM(X33:AC33) -> 1507214.536
A34: Undiversified Risk Requirement | B34: =B32+B18 -> 4474110.413 | H34: =SUM(B34:G34) -> 4474110.413 | N34: =N32+N18 -> 7686253.73 | T34: =SUM(N34:S34) -> 7686253.73 | X34: =X32+X18 -> 2165649.011 | AD34: =SUM(X34:AC34) -> 2165649.011
A35: Final Adjusted Requirement | B35: ='2a.ii Inputs - Canada Factors'!$B$79*B34+'2a.ii Inputs - Canada Factors'!$B$80*I18+MAX('2a.ii Inputs - Canada Factors'!$B$81*B34-'2a.ii Inputs - Canada Factors'!$B$82*I18-'2a.ii Inputs - Canada Factors'!$B$83*B33+(2*B33^2/(2*B34-I18)),0) -> 4059656.028 | H35: 4059656.028 | N35: ='2a.ii Inputs - Canada Factors'!$B$79*N34+'2a.ii Inputs - Canada Factors'!$B$80*U18+MAX('2a.ii Inputs - Canada Factors'!$B$81*N34-'2a.ii Inputs - Canada Factors'!$B$82*U18-'2a.ii Inputs - Canada Factors'!$B$83*N33+(2*N33^2/(2*N34-U18)),0) -> 7098799.337 | T35: 7098799.337 | X35: ='2a.ii Inputs - Canada Factors'!$B$79*X34+'2a.ii Inputs - Canada Factors'!$B$80*AE18+MAX('2a.ii Inputs - Canada Factors'!$B$81*X34-'2a.ii Inputs - Canada Factors'!$B$82*AE18-'2a.ii Inputs - Canada Factors'!$B$83*X33+(2*X33^2/(2*X34-AE18)),0) -> 1946056.281 | AD35: 1946056.281
A37: Credits
A38: Qualifying in-force participating and adjustable products | C38: 0 | D38: 0 | E38: 0 | F38: 0 | G38: 0 | H38: 0 | O38: 0 | P38: 0 | Q38: 0 | R38: 0 | S38: 0 | T38: =SUM(N38:S38) -> 0 | Y38: 0 | Z38: 0 | AA38: 0 | AB38: 0 | AC38: 0 | AD38: =SUM(X38:AC38) -> 0
A39: Risk Diversification | B39: 0 | C39: 0 | D39: 0 | E39: 0 | F39: 0 | G39: 0 | H39: 0 | O39: 0 | P39: 0 | Q39: 0 | R39: 0 | S39: 0 | T39: 0 | Y39: 0 | Z39: 0 | AA39: 0 | AB39: 0 | AC39: 0 | AD39: 0
A40: Credit Sub-Total | B40: =SUM(B38:B39) -> 0 | C40: =SUM(C38:C39) -> 0 | D40: 0 | E40: 0 | F40: 0 | G40: 0 | H40: 0 | N40: =SUM(N38:N39) -> 0 | O40: =SUM(O38:O39) -> 0 | P40: 0 | Q40: 0 | R40: 0 | S40: 0 | T40: 0 | X40: =SUM(X38:X39) -> 0 | Y40: =SUM(Y38:Y39) -> 0 | Z40: 0 | AA40: 0 | AB40: 0 | AC40: 0 | AD40: 0
A41: Geographic Region Base Solvency Buffer | B41: =B35-B40+B26+B27 -> 4316917.377 | C41: =C35-C40+C26+C27 -> 0 | D41: 0 | E41: 0 | F41: 0 | G41: 0 | H41: 4316917.377 | N41: =N35-N40+N26+N27 -> 7540758.926 | O41: 0 | P41: 0 | Q41: 0 | R41: 0 | S41: 0 | T41: =SUM(N41:S41) -> 7540758.926 | X41: =X35-X40+X26+X27 -> 2070581.099 | Y41: 0 | Z41: 0 | AA41: 0 | AB41: 0 | AC41: 0 | AD41: =SUM(X41:AC41) -> 2070581.099
A43: Base Solvency Buffer after Scalar | B43: =H41*'2a.ii Inputs - Canada Factors'!$B$7 -> 4316917.377 | N43: =T41*'2a.ii Inputs - Canada Factors'!$B$7 -> 7540758.926 | X43: =AD41*'2a.ii Inputs - Canada Factors'!$B$7 -> 2070581.099
A45: Tier 1
A46: Common shares issued by the insurer, other than those issued by consolidated subsidiaries and held by third party investors | B46: 0 | C46: Assume no common shares | N46: 0 | X46: 0
A47: Tier 1 Capital Instruments other than Common Shares issued by the insurer, other than those issued by consolidated subsidiaries and held by third party investors | B47: 0 | C47: Assume to be zero | N47: 0 | X47: 0
A48: Instruments issued by consolidated subsidiaries of the insurer and held by third party investors | B48: 0 | C48: Assume no subsidiaries | N48: 0 | X48: 0
A49: Contributed Surplus | B49: =B109 -> -439933.675 | N49: =N109 -> -3663775.224 | X49: =X109 -> 1806402.603
A50: Adjusted Retained Earnings | B50: ='2a.ii Inputs - Canada Factors'!$B$17 -> 120000 | C50: Assumption | N50: ='2a.ii Inputs - Canada Factors'!$C$17 -> 180000 | X50: ='2a.ii Inputs - Canada Factors'!$D$17 -> 90000
A51: Adjusted Accumulated Other Comprehensive Income (AOCI) | B51: 0 | C51: Assume no AOCI | N51: 0 | X51: 0
A52: Participating Account | B52: 0 | C52: Assume this is zero since the products sold by the Company are Term or Annuity and are not participating. | N52: 0 | X52: 0
A53: Non-participating account (mutual companies) | B53: 0 | C53: Assume this is a public company | N53: 0 | X53: 0
A54: Tier 1 elements, other than capital instruments, attributable to non-controlling interests | B54: 0 | N54: 0 | X54: 0
A55: Tax adjustments and amounts recoverable on surrender related to policy-by-policy negative reserves ceded under unregistered reinsurance . | B55: 0 | N55: 0 | X55: 0
A56: Gross Tier 1 Capital | B56: =SUM(B46:B55) -> -319933.675 | N56: =SUM(N46:N55) -> -3483775.224 | X56: =SUM(X46:X55) -> 1896402.603
A58: Deductions from Gross Tier 1 Capital | C58: Assume no Tier 1 Deductions
A59: Goodwill and Other Intangible Assets | B59: 0 | N59: 0 | X59: 0
A60: Investments in own Tier 1 Capital | B60: 0 | N60: 0 | X60: 0
A61: Reciprocal Cross Holdings of Tier 1 Capital of banking, insurance | B61: 0 | N61: 0 | X61: 0
A62: Net Defined Benefit Pension Plan Assets | B62: 0 | N62: 0 | X62: 0
A63: Deferred Tax Assets | B63: 0 | N63: 0 | X63: 0
A64: Encumbered Assets | B64: 0 | N64: 0 | X64: 0
A65: Investments in Tier 1 Capital of controlled non-life financial corporations | B65: 0 | N65: 0 | X65: 0
A66: Cash surrender value deficiencies calculated by aggregated sets | B66: 0 | N66: 0 | X66: 0
A67: Negative reserves and deferred acquisition costs calculated policy-by-policy | B67: 0 | N67: 0 | X67: 0
A68: Commission chargebacks | B68: 0 | N68: 0 | X68: 0
A69: Marginal insurance risk requirements | B69: 0 | N69: 0 | X69: 0
A70: Other Items deducted from Gross Tier 1 | B70: 0 | N70: 0 | X70: 0
A71: Total | B71: =SUM(B59:B70) -> 0 | N71: =SUM(N59:N70) -> 0 | X71: =SUM(X59:X70) -> 0
A73: Net Tier 1 Capital | B73: =B56-B71 -> -319933.675 | N73: =N56-N71 -> -3483775.224 | X73: =X56-X71 -> 1896402.603
A75: Tier 2 | C75: Assume no Tier 2 Capital
A76: Tier 2 Capital instruments issued by the insurer, other than those issued by consolidated subsidiaries and held by third party investors | B76: 0 | N76: 0 | X76: 0
A77: Tier 2 Capital instruments issued by consolidated subsidiaries and held by third party investors | B77: 0 | N77: 0 | X77: 0
A78: Tier 2 Capital elements other than capital instruments | B78: 0 | N78: 0 | X78: 0
A79: Total Tier 2 | B79: =SUM(B76:B78) -> 0 | N79: =SUM(N76:N78) -> 0 | X79: =SUM(X76:X78) -> 0
A81: Available Capital | B81: =MAX(B73+B79,'2a.ii Inputs - Canada Factors'!$B$8) -> 5000000 | C81: Maximum of Tier 1 + Tier 2 capital or $5M | N81: =MAX(N73+N79,'2a.ii Inputs - Canada Factors'!$B$8) -> 5000000 | X81: =MAX(X73+X79,'2a.ii Inputs - Canada Factors'!$B$8) -> 5000000
A82: Risk Adjustments and Surplus Allowance | B82: ='2a.ii Inputs - Canada Factors'!$B$18 -> 1000000 | N82: ='2a.ii Inputs - Canada Factors'!$C$18 -> 1200000 | X82: ='2a.ii Inputs - Canada Factors'!$D$18 -> 1200000
A83: Eligible Deposits | B83: 0 | C83: Assume to be zero | N83: 0 | X83: 0
A85: Total Ratio | B85: =IFERROR((B81+B82+B83)/B43,0) -> 1.389880666 | C85: Total Ratio focuses on policyholder and creditor protection. Required to maintain a Total Ratio of 90% at minimum | N85: =IFERROR((N81+N82+N83)/N43,0) -> 0.8221984101 | X85: =IFERROR((X81+X82+X83)/X43,0) -> 2.994328502
A87: Core Ratio | B87: =IFERROR((B81+'2a.ii Inputs - Canada Factors'!$B$6*(B82+B83))/B43,0) -> 1.320386633 | C87: Core Ratio focuses on financial strength. Required to maintain a Core Ratio of 55% at minimum | N87: =IFERROR((N81+'2a.ii Inputs - Canada Factors'!$B$6*(N82+N83))/N43,0) -> 0.7744578572 | X87: =IFERROR((X81+'2a.ii Inputs - Canada Factors'!$B$6*(X82+X83))/X43,0) -> 2.820464267
A89: Balance Sheet
A91: Assets
A92: ='2b. Inputs - Assets'!A16 -> Fixed Income 1 | B92: ='2b. Inputs - Assets'!B16 -> 7000000 | N92: ='2b. Inputs - Assets'!H16 -> 1820000 | X92: ='2b. Inputs - Assets'!B16 -> 7000000
A93: ='2b. Inputs - Assets'!A17 -> Fixed Income 2 | B93: ='2b. Inputs - Assets'!B17 -> 7000000 | N93: ='2b. Inputs - Assets'!H17 -> 1820000 | X93: ='2b. Inputs - Assets'!B17 -> 7000000
A94: ='2b. Inputs - Assets'!A18 -> Mortgages | B94: ='2b. Inputs - Assets'!B18 -> 2500000 | N94: ='2b. Inputs - Assets'!H18 -> 3640000 | X94: ='2b. Inputs - Assets'!B18 -> 2500000
A95: ='2b. Inputs - Assets'!A19 -> Real Estate | B95: ='2b. Inputs - Assets'!B19 -> 1000000 | N95: ='2b. Inputs - Assets'!H19 -> 3640000 | X95: ='2b. Inputs - Assets'!B19 -> 1000000
A96: ='2b. Inputs - Assets'!A20 -> Equity (Stocks in OECD or EEA countries) | B96: ='2b. Inputs - Assets'!B20 -> 500000 | N96: ='2b. Inputs - Assets'!H20 -> 3640000 | X96: ='2b. Inputs - Assets'!B20 -> 500000
A97: ='2b. Inputs - Assets'!A21 -> Equity (Stocks in emerging markets) | B97: ='2b. Inputs - Assets'!B21 -> 200000 | N97: ='2b. Inputs - Assets'!H21 -> 3640000 | X97: ='2b. Inputs - Assets'!B21 -> 200000
A98: Total Assets | B98: =SUM(B92:B97) -> 18200000 | N98: =SUM(N92:N97) -> 18200000 | X98: =SUM(X92:X97) -> 18200000
A100: Liabilities
A101: Reserves | B101: ='2c. Inputs - Liabilities'!H21 -> 14243016.3 | N101: =B101 -> 14243016.3 | X101: ='2c. Inputs - Liabilities'!H32 -> 14243016.3
A102: Separate Account Liabilities | B102: ='2c. Inputs - Liabilities'!I21 -> 0 | N102: =B102 -> 0 | X102: =M102 -> 0
A103: Asset Valuation Reserve | B103: ='2c. Inputs - Liabilities'!B23 -> 50000 | N103: 50000 | X103: =B103 -> 50000
A104: Dividend Liability | B104: ='2c. Inputs - Liabilities'!B24 -> 30000 | N104: 30000 | X104: =B104 -> 30000
A105: Total Liabilities | B105: =SUM(B101:B104) -> 14323016.3 | N105: =SUM(N101:N104) -> 14323016.3 | X105: =SUM(X101:X104) -> 14323016.3
A107: Surplus
A108: Required | B108: =B43 -> 4316917.377 | N108: =N43 -> 7540758.926 | X108: =X43 -> 2070581.099
A109: Free | B109: =B110-B108 -> -439933.675 | N109: =N110-N108 -> -3663775.224 | X109: =X110-X108 -> 1806402.603
A110: Total Surplus | B110: =B98-B105 -> 3876983.702 | N110: =N98-N105 -> 3876983.702 | X110: =X98-X105 -> 3876983.702

Sheet 3c. Europe
A1: SOA Research Institute
A2: Regulatory Capital Adequacy for Life Insurance Companies Example
A3: European Solvency II Calculation
B5: Base Scenario | D5: Risky Assets | F5: Change Liability Mix
A6: Solvency Capital Requirement | B6: =(B8^2 + B17^2 +0.5*B8*B17)^0.5 -> 2942183.639 | D6: =(D8^2 + D17^2 +0.5*D8*D17)^0.5 -> 6419333.054 | F6: =(F8^2 + F17^2 +0.5*F8*F17)^0.5 -> 1608030.831
A8: Solvency Capital Requirement (Market) | B8: =(B10^2+B9^2+B11^2+B12^2+B13^2+B14^2+2*('2a.iii Inputs - Europe Factors'!$D$41*(B10*B9+B9*B11+B9*B12)+'2a.iii Inputs - Europe Factors'!$D$44*(B10*B11+B10*B12)+'2a.iii Inputs - Europe Factors'!$E$45*(B11*B12)+'2a.iii Inputs - Europe Factors'!$B$48*B14*(B12+B11+B10+B9)))^0.5 -> 1773896.746 | D8: =(D10^2+D9^2+D11^2+D12^2+D13^2+D14^2+2*('2a.iii Inputs - Europe Factors'!$D$41*(D10*D9+D9*D11+D9*D12)+'2a.iii Inputs - Europe Factors'!$D$44*(D10*D11+D10*D12)+'2a.iii Inputs - Europe Factors'!$E$45*(D11*D12)+'2a.iii Inputs - Europe Factors'!$B$48*D14*(D12+D11+D10+D9)))^0.5 -> 5650443.6 | F8: =(F10^2+F9^2+F11^2+F12^2+F13^2+F14^2+2*('2a.iii Inputs - Europe Factors'!$D$41*(F10*F9+F9*F11+F9*F12)+'2a.iii Inputs - Europe Factors'!$D$44*(F10*F11+F10*F12)+'2a.iii Inputs - Europe Factors'!$E$45*(F11*F12)+'2a.iii Inputs - Europe Factors'!$B$48*F14*(F12+F11+F10+F9)))^0.5 -> 974973.7321
A9: Solvency Capital Requirement (Interest Rate) | B9: =MAX(0,'2b. Inputs - Assets'!E34+'2a.iii Inputs - Europe Factors'!M45,'2b. Inputs - Assets'!E37+'2a.iii Inputs - Europe Factors'!K45) -> 1410360.413 | D9: =MAX(0,'2b. Inputs - Assets'!I34+'2a.iii Inputs - Europe Factors'!M45,'2b. Inputs - Assets'!I37+'2a.iii Inputs - Europe Factors'!K45) -> 2110953.73 | F9: =MAX(0,'2b. Inputs - Assets'!E34+'2a.iii Inputs - Europe Factors'!M55,'2b. Inputs - Assets'!E37+'2a.iii Inputs - Europe Factors'!K55) -> 554399.0112
A10: Solvency Capital Requirement (Equity) | B10: =((B33*'2a.iii Inputs - Europe Factors'!$B$15)^2 + 2*'2a.iii Inputs - Europe Factors'!$B$17 *(B33*'2a.iii Inputs - Europe Factors'!$B$15)*(B34*'2a.iii Inputs - Europe Factors'!$B$16) +(B34*'2a.iii Inputs - Europe Factors'!$B$16)^2)^0.5 -> 325935.5765 | D10: =((D33*0.465)^2 + 2*0.75 *(D33*0.465)*(D34*0.565) +(D34*0.565)^2)^0.5 -> 3509415.914 | F10: =((F33*0.465)^2 + 2*0.75 *(F33*0.465)*(F34*0.565) +(F34*0.565)^2)^0.5 -> 325935.5765
A11: Solvency Capital Requirement (Property) | B11: ='2a.iii Inputs - Europe Factors'!$B$18*(B32) -> 250000 | D11: ='2a.iii Inputs - Europe Factors'!$B$18*(D32) -> 910000 | F11: ='2a.iii Inputs - Europe Factors'!$B$18*(F32) -> 250000
A12: Solvency Capital Requirement (Spread) | B12: ='2a.iii Inputs - Europe Factors'!$B6 -> 25000 | D12: ='2a.iii Inputs - Europe Factors'!$B6 -> 25000 | F12: ='2a.iii Inputs - Europe Factors'!$B6 -> 25000
A13: Solvency Capital Requirement (Concentration) | B13: ='2a.iii Inputs - Europe Factors'!$B7 -> 0 | D13: ='2a.iii Inputs - Europe Factors'!$B7 -> 0 | F13: ='2a.iii Inputs - Europe Factors'!$B7 -> 0
A14: Solvency Capital Requirement (Currency) | B14: ='2a.iii Inputs - Europe Factors'!$B8 -> 0 | D14: ='2a.iii Inputs - Europe Factors'!$B8 -> 0 | F14: ='2a.iii Inputs - Europe Factors'!$B8 -> 0
A15: Interest Rate Scenario Up or Down | B15: =IF(VLOOKUP('2b. Inputs - Assets'!D16,'2a.iii Inputs - Europe Factors'!B23:D37,2) >VLOOKUP('2b. Inputs - Assets'!D16,'2a.iii Inputs - Europe Factors'!B23:D37,3), "Up", "Down") -> Up | D15: =IF(VLOOKUP('2b. Inputs - Assets'!I16,'2a.iii Inputs - Europe Factors'!B23:D37,2) >VLOOKUP('2b. Inputs - Assets'!I16,'2a.iii Inputs - Europe Factors'!B23:D37,3), "Up", "Down") -> Down | F15: =IF(VLOOKUP('2b. Inputs - Assets'!D16,'2a.iii Inputs - Europe Factors'!B23:D37,2) >VLOOKUP('2b. Inputs - Assets'!D16,'2a.iii Inputs - Europe Factors'!B23:D37,3), "Up", "Down") -> Up
A17: Solvency Capital Requirement (Life) | B17: =(B18^2+B19^2+B20^2+B21^2+B22^2+B23^2+B24^2+2*(('2a.iii Inputs - Europe Factors'!$B$53*B18*B19)+'2a.iii Inputs - Europe Factors'!$B$54*(B20*B22+B21*B22+B22*B23)+'2a.iii Inputs - Europe Factors'!$B$54*(B18*B20+B18*B22+B18*B24+B19+B19*B22+B19*B23+B20*B24+B24*B21+B24*B22)))^0.5 -> 1945333.938 | D17: =(D18^2+D19^2+D20^2+D21^2+D22^2+D23^2+D24^2+2*(('2a.iii Inputs - Europe Factors'!$B$53*D18*D19)+'2a.iii Inputs - Europe Factors'!$B$54*(D20*D22+D21*D22+D22*D23)+'2a.iii Inputs - Europe Factors'!$B$54*(D18*D20+D18*D22+D18*D24+D19+D19*D22+D19*D23+D20*D24+D24*D21+D24*D22)))^0.5 -> 1945333.938 | F17: =(F18^2+F19^2+F20^2+F21^2+F22^2+F23^2+F24^2+2*(('2a.iii Inputs - Europe Factors'!$B$53*F18*F19)+'2a.iii Inputs - Europe Factors'!$B$54*(F20*F22+F21*F22+F22*F23)+'2a.iii Inputs - Europe Factors'!$B$54*(F18*F20+F18*F22+F18*F24+F19+F19*F22+F19*F23+F20*F24+F24*F21+F24*F22)))^0.5 -> 1058024.686
A18: Solvency Capital Requirement (Mortality) | B18: ='2a.iii Inputs - Europe Factors'!K47-'2c. Inputs - Liabilities'!L19 -> 1983499.166 | D18: ='2a.iii Inputs - Europe Factors'!K47-'2c. Inputs - Liabilities'!L19 -> 1983499.166 | F18: ='2a.iii Inputs - Europe Factors'!K57-'2c. Inputs - Liabilities'!L30 -> 992236.1009
A19: Solvency Capital Requirement (Longevity) | B19: ='2a.iii Inputs - Europe Factors'!L48-'2c. Inputs - Liabilities'!L20 -> 410736.3946 | D19: ='2a.iii Inputs - Europe Factors'!L48-'2c. Inputs - Liabilities'!L20 -> 410736.3946 | F19: ='2a.iii Inputs - Europe Factors'!L58-'2c. Inputs - Liabilities'!L31 -> 615802.6486
A20: Solvency Capital Requirement (Disability/Morbidity) | B20: ='2a.iii Inputs - Europe Factors'!$B9 -> 0 | D20: ='2a.iii Inputs - Europe Factors'!$B9 -> 0 | F20: ='2a.iii Inputs - Europe Factors'!$B9 -> 0
A21: Solvency Capital Requirement (Lapse) | B21: ='2a.iii Inputs - Europe Factors'!$B10 -> 0 | D21: ='2a.iii Inputs - Europe Factors'!$B10 -> 0 | F21: ='2a.iii Inputs - Europe Factors'!$B10 -> 0
A22: Solvency Capital Requirement (Expenses) | B22: ='2a.iii Inputs - Europe Factors'!$B11 -> 70000 | D22: ='2a.iii Inputs - Europe Factors'!$B11 -> 70000 | F22: ='2a.iii Inputs - Europe Factors'!$B11 -> 70000
A23: Solvency Capital Requirement (Revision) | B23: ='2a.iii Inputs - Europe Factors'!$B12 -> 0 | D23: ='2a.iii Inputs - Europe Factors'!$B12 -> 0 | F23: ='2a.iii Inputs - Europe Factors'!$B12 -> 0
A24: Solvency Capital Requirement (CAT) | B24: ='2a.iii Inputs - Europe Factors'!$B13 -> 0 | D24: ='2a.iii Inputs - Europe Factors'!$B13 -> 0 | F24: ='2a.iii Inputs - Europe Factors'!$B13 -> 0
A26: Balance Sheet
A28: Assets
A29: Fixed Income | B29: =SUM('2b. Inputs - Assets'!C16:C17) -> 15050000 | D29: =SUM('2b. Inputs - Assets'!I16:I17) -> 3913000 | F29: =B29 -> 15050000
A30: Duration | B30: =SUMPRODUCT('2b. Inputs - Assets'!C16:C18,'2b. Inputs - Assets'!D16:D18)/SUM('2b. Inputs - Assets'!C16:C18) -> 12.14387464 | D30: =SUMPRODUCT('2b. Inputs - Assets'!I16:I18,'2b. Inputs - Assets'!J16:J18)/SUM('2b. Inputs - Assets'!I16:I18) -> 11.29518072 | F30: =SUMPRODUCT('2b. Inputs - Assets'!C16:C18,'2b. Inputs - Assets'!D16:D18)/SUM('2b. Inputs - Assets'!C16:C18) -> 12.14387464
A31: Mortgages | B31: ='2b. Inputs - Assets'!C18 -> 2500000 | D31: ='2b. Inputs - Assets'!I18 -> 3640000 | F31: =B31 -> 2500000
A32: Real Estate | B32: ='2b. Inputs - Assets'!C19 -> 1000000 | D32: ='2b. Inputs - Assets'!I19 -> 3640000 | F32: 1000000
A33: Equity (Stocks in OECD or EEA countries) | B33: ='2b. Inputs - Assets'!C20 -> 500000 | D33: ='2b. Inputs - Assets'!I20 -> 3640000 | F33: 500000
A34: Equity (Stocks in emerging markets) | B34: ='2b. Inputs - Assets'!C21 -> 200000 | D34: ='2b. Inputs - Assets'!I21 -> 3640000 | F34: 200000
A35: Total Assets | B35: ='2b. Inputs - Assets'!C22 -> 19250000 | D35: ='2b. Inputs - Assets'!I22 -> 18473000 | F35: 19250000
A37: Liabilities
A38: Life | B38: ='2c. Inputs - Liabilities'!L19 -> 6189579.39 | D38: =B38 -> 6189579.39 | F38: ='2c. Inputs - Liabilities'!L30 -> 3096307.891
A39: Annuity | B39: ='2c. Inputs - Liabilities'!L20 -> 7500000 | D39: =B39 -> 7500000 | F39: ='2c. Inputs - Liabilities'!L31 -> 11244486.55
A40: Best Estimate of Liabilities (BEL) | B40: =SUM(B38:B39) -> 13689579.39 | D40: =SUM(D38:D39) -> 13689579.39 | F40: =SUM(F38:F39) -> 14340794.44
A42: Surplus
A43: Solvency Capital Requirement | B43: =(B8^2 + B17^2 +0.5 *B8*B17)^0.5 -> 2942183.639 | D43: =(D8^2 + D17^2 +0.5 *D8*D17)^0.5 -> 6419333.054 | F43: =(F8^2 + F17^2 +0.5 *F8*F17)^0.5 -> 1608030.831
A44: Available Capital | B44: =B45-B43 -> 2618236.971 | D44: =D45-D43 -> -1635912.444 | F44: =F45-F43 -> 3301174.727
A45: Capital | B45: =B35-B40 -> 5560420.61 | D45: =D35-D40 -> 4783420.61 | F45: =F35-F40 -> 4909205.558
A46: Solvency Ratio | B46: =B45/B43 -> 1.889895837 | D46: =D45/D43 -> 0.7451585032 | F46: =F45/F43 -> 3.052929996

Sheet 3d. Bermuda
A1: SOA Research Institute
A2: Regulatory Capital Adequacy for Life Insurance Companies Example
A3: Bermuda Insurance Solvency Framework Calculation
A5: Risk | B5: Base Scenario | D5: Riskier Assets | F5: Change Liability Mix
A7: BSCRcorr = Basic BCSR + Coperational + Cregulatory adj +Cother adj +CAdjTP | B7: =SUM(B8:B12) -> 1830974.239 | D7: =SUM(D8:D12) -> 5501050.596 | F7: =SUM(F8:F12) -> 1198792.481
A8: Basic BSCR = Basic BSCR Risk Module charge | B8: =B14 -> 1830974.239 | D8: =D14 -> 5501050.596 | F8: =F14 -> 1198792.481
A9: Coperational = operational risk charge | B9: ='2a.iv Inputs - Bermuda Factors'!$B14 -> 0 | D9: ='2a.iv Inputs - Bermuda Factors'!$B14 -> 0 | F9: ='2a.iv Inputs - Bermuda Factors'!$B14 -> 0
A10: Cregulatory adj = regulatory capital requirement for non-insurance financial operating entities | B10: ='2a.iv Inputs - Bermuda Factors'!$B15 -> 0 | D10: ='2a.iv Inputs - Bermuda Factors'!$B15 -> 0 | F10: ='2a.iv Inputs - Bermuda Factors'!$B15 -> 0
A11: Cother adj = adjustment for the loss absorbing capacity of technical provisions | B11: ='2a.iv Inputs - Bermuda Factors'!$B16 -> 0 | D11: ='2a.iv Inputs - Bermuda Factors'!$B16 -> 0 | F11: ='2a.iv Inputs - Bermuda Factors'!$B16 -> 0
A12: CAdjTP = adjustment for the loss absorbing capital of deferred taxes | B12: ='2a.iv Inputs - Bermuda Factors'!$B17 -> 0 | D12: ='2a.iv Inputs - Bermuda Factors'!$B17 -> 0 | F12: ='2a.iv Inputs - Bermuda Factors'!$B17 -> 0
A14: Basic BSCR | B14: =(B15^2+B16^2+B17^2+B18^2+2*('2a.iv Inputs - Bermuda Factors'!$B$58*B16*(B15+B18)+'2a.iv Inputs - Bermuda Factors'!$C$59*B16*B17+'2a.iv Inputs - Bermuda Factors'!$B$59*B15*(B17+B18)))^0.5 -> 1830974.239 | D14: =(D15^2+D16^2+D17^2+D18^2+2*('2a.iv Inputs - Bermuda Factors'!$B$58*D16*(D15+D18)+'2a.iv Inputs - Bermuda Factors'!$C$59*D16*D17+'2a.iv Inputs - Bermuda Factors'!$B$59*D15*(D17+D18)))^0.5 -> 5501050.596 | F14: =(F15^2+F16^2+F17^2+F18^2+2*('2a.iv Inputs - Bermuda Factors'!$B$58*F16*(F15+F18)+'2a.iv Inputs - Bermuda Factors'!$C$59*F16*F17+'2a.iv Inputs - Bermuda Factors'!$B$59*F15*(F17+F18)))^0.5 -> 1198792.481
A15: CMarket = capital charge for Market Risk | B15: =B20 -> 1646820.821 | D15: =D20 -> 5383086.399 | F15: =F20 -> 1015017.319 | H15: Sum of Risks | I15: =SUM(B22:B26,B28,B31:B37) -> 3398199.785 | K15: =SUM(D22:D26,D28,D31:D37) -> 8172377.102 | M15: =SUM(F22:F26,F28,F31:F37) -> 2380914.095
A16: CP&C = capital charge for P&C risk | B16: =B28 -> 0 | D16: =D28 -> 0 | F16: =F28 -> 0
A17: CLT = capital charge for Long-term Risk, and | B17: =B30 -> 588913.1632 | D17: =D30 -> 588913.1632 | F17: =F30 -> 495670.5324
A18: CCredit = capital charge for credit risk | B18: ='2a.iv Inputs - Bermuda Factors'!$B$6 -> 100000 | D18: ='2a.iv Inputs - Bermuda Factors'!$B$6 -> 100000 | F18: ='2a.iv Inputs - Bermuda Factors'!$B$6 -> 100000
A20: CMarket | B20: =(B22^2+B23^2+B24^2+B25^2+B26^2+2*('2a.iv Inputs - Bermuda Factors'!$B$65*B22*B23+'2a.iv Inputs - Bermuda Factors'!$B$67*(B22+B23+B24)+B21*B24*(B23+B22)))^0.5 -> 1646820.821 | D20: =(D22^2+D23^2+D24^2+D25^2+D26^2+2*('2a.iv Inputs - Bermuda Factors'!$B$65*D22*D23+'2a.iv Inputs - Bermuda Factors'!$B$67*(D22+D23+D24)+D21*D24*(D23+D22)))^0.5 -> 5383086.399 | F20: =(F22^2+F23^2+F24^2+F25^2+F26^2+2*('2a.iv Inputs - Bermuda Factors'!$B$65*F22*F23+'2a.iv Inputs - Bermuda Factors'!$B$67*(F22+F23+F24)+F21*F24*(F23+F22)))^0.5 -> 1015017.319
A21: A | B21: 0 | D21: 0 | F21: 0
A22: CfixedIncome = capital charge for fixed income investment risk (factor based charges) | B22: =SUM('2b. Inputs - Assets'!C16:C17)*'2a.iv Inputs - Bermuda Factors'!B22+'2b. Inputs - Assets'!C18*'2a.iv Inputs - Bermuda Factors'!C22 -> 150400 | D22: =SUM('2b. Inputs - Assets'!$I$16:$I$17)*'2a.iv Inputs - Bermuda Factors'!$B$22+'2b. Inputs - Assets'!$I$18*'2a.iv Inputs - Bermuda Factors'!$C$22 -> 74984 | F22: =SUM('2b. Inputs - Assets'!$C$16:$C$17)*'2a.iv Inputs - Bermuda Factors'!$B$22+'2b. Inputs - Assets'!$C$18*'2a.iv Inputs - Bermuda Factors'!$C$22 -> 150400 | H22: Fixed Income Investment Risk | I22: =B22/I$15 -> 0.04425872801 | K22: =D22/K$15 -> 0.009175298578 | M22: =F22/M$15 -> 0.06316901577
A23: Cequity = capital charge for equity investment risk | B23: ='2a.iv Inputs - Bermuda Factors'!$B$31*SUM(B43:B45) -> 765000 | D23: ='2a.iv Inputs - Bermuda Factors'!$B$31*SUM(D43:D45) -> 4914000 | F23: ='2a.iv Inputs - Bermuda Factors'!$B$31*SUM(F43:F45) -> 765000 | H23: Equity Investment Risk | I23: =B23/I$15 -> 0.225119195 | K23: =D23/K$15 -> 0.6012938388 | M23: =F23/M$15 -> 0.3213051667
A24: Cinterest = capital charge for interest rate and liquidity risk | B24: ='3c. Europe'!B9 -> 1410360.413 | D24: ='3c. Europe'!$D$9 -> 2110953.73 | F24: ='3c. Europe'!$F$9 -> 554399.0112 | H24: Interest Rate and Liquidity Risk | I24: =B24/I$15 -> 0.415031635 | K24: =D24/K$15 -> 0.2583035148 | M24: =F24/M$15 -> 0.232851329
A25: Ccurrency = capital charge for currency risk | B25: ='2a.iv Inputs - Bermuda Factors'!$B7 -> 0 | D25: ='2a.iv Inputs - Bermuda Factors'!$B7 -> 0 | F25: ='2a.iv Inputs - Bermuda Factors'!$B7 -> 0 | H25: Currency Risk | I25: =B25/I$15 -> 0 | K25: =D25/K$15 -> 0 | M25: =F25/M$15 -> 0
A26: Cconcentration = capital charge for concentration risk | B26: ='2a.iv Inputs - Bermuda Factors'!$B8 -> 0 | D26: ='2a.iv Inputs - Bermuda Factors'!$B8 -> 0 | F26: ='2a.iv Inputs - Bermuda Factors'!$B8 -> 0 | H26: Concentration Risk | I26: =B26/I$15 -> 0 | K26: =D26/K$15 -> 0 | M26: =F26/M$15 -> 0
A28: CP&C | B28: ='2a.iv Inputs - Bermuda Factors'!$B$9 -> 0 | D28: ='2a.iv Inputs - Bermuda Factors'!$B$9 -> 0 | F28: ='2a.iv Inputs - Bermuda Factors'!$B$9 -> 0 | H28: P&C Risk | I28: =B28/I$15 -> 0 | K28: =D28/K$15 -> 0 | M28: =F28/M$15 -> 0
A30: CLT | B30: =((B31^2+B32^2+B33^2+B34^2+B35^2+B36^2+B37^2)+2*('2a.iv Inputs - Bermuda Factors'!$B$73*(B31*B32+B31*B33+B32*B33)+'2a.iv Inputs - Bermuda Factors'!$B$75*(B31*B34+B37*(B36+B35+B34+B33+B32))+'2a.iv Inputs - Bermuda Factors'!$B$76*(B35*(B31+B32+B33))+'2a.iv Inputs - Bermuda Factors'!$B$78*(B31*B37)))^0.5 -> 588913.1632 | D30: =((D31^2+D32^2+D33^2+D34^2+D35^2+D36^2+D37^2)+2*('2a.iv Inputs - Bermuda Factors'!$B$73*(D31*D32+D31*D33+D32*D33)+'2a.iv Inputs - Bermuda Factors'!$B$75*(D31*D34+D37*(D36+D35+D34+D33+D32))+'2a.iv Inputs - Bermuda Factors'!$B$76*(D35*(D31+D32+D33))+'2a.iv Inputs - Bermuda Factors'!$B$78*(D31*D37)))^0.5 -> 588913.1632 | F30: =((F31^2+F32^2+F33^2+F34^2+F35^2+F36^2+F37^2)+2*('2a.iv Inputs - Bermuda Factors'!$B$73*(F31*F32+F31*F33+F32*F33)+'2a.iv Inputs - Bermuda Factors'!$B$75*(F31*F34+F37*(F36+F35+F34+F33+F32))+'2a.iv Inputs - Bermuda Factors'!$B$76*(F35*(F31+F32+F33))+'2a.iv Inputs - Bermuda Factors'!$B$78*(F31*F37)))^0.5 -> 495670.5324
A31: CLTmortality = Capital charge for mortality risk | B31: =('2c. Inputs - Liabilities'!$K$19/1000)*IF('2c. Inputs - Liabilities'!$K$19<'2a.iv Inputs - Bermuda Factors'!$B$37,'2a.iv Inputs - Bermuda Factors'!$D$37,IF('2c. Inputs - Liabilities'!$K$19<'2a.iv Inputs - Bermuda Factors'!$B$38,'2a.iv Inputs - Bermuda Factors'!$D$38,IF('2c. Inputs - Liabilities'!$K$19<'2a.iv Inputs - Bermuda Factors'!$B$39,'2a.iv Inputs - Bermuda Factors'!$D$39,IF('2c. Inputs - Liabilities'!$K$19<'2a.iv Inputs - Bermuda Factors'!$B$40,'2a.iv Inputs - Bermuda Factors'!$D$40,'2a.iv Inputs - Bermuda Factors'!$D$41)))) -> 666491.4753 | D31: =('2c. Inputs - Liabilities'!$K$19/1000)*IF('2c. Inputs - Liabilities'!$K$19<'2a.iv Inputs - Bermuda Factors'!$B$37,'2a.iv Inputs - Bermuda Factors'!$D$37,IF('2c. Inputs - Liabilities'!$K$19<'2a.iv Inputs - Bermuda Factors'!$B$38,'2a.iv Inputs - Bermuda Factors'!$D$38,IF('2c. Inputs - Liabilities'!$K$19<'2a.iv Inputs - Bermuda Factors'!$B$39,'2a.iv Inputs - Bermuda Factors'!$D$39,IF('2c. Inputs - Liabilities'!$K$19<'2a.iv Inputs - Bermuda Factors'!$B$40,'2a.iv Inputs - Bermuda Factors'!$D$40,'2a.iv Inputs - Bermuda Factors'!$D$41)))) -> 666491.4753 | F31: =('2c. Inputs - Liabilities'!$K$30/1000)*IF('2c. Inputs - Liabilities'!$K$19<'2a.iv Inputs - Bermuda Factors'!$B$37,'2a.iv Inputs - Bermuda Factors'!$D$37,IF('2c. Inputs - Liabilities'!$K$19<'2a.iv Inputs - Bermuda Factors'!$B$38,'2a.iv Inputs - Bermuda Factors'!$D$38,IF('2c. Inputs - Liabilities'!$K$19<'2a.iv Inputs - Bermuda Factors'!$B$39,'2a.iv Inputs - Bermuda Factors'!$D$39,IF('2c. Inputs - Liabilities'!$K$19<'2a.iv Inputs - Bermuda Factors'!$B$40,'2a.iv Inputs - Bermuda Factors'!$D$40,'2a.iv Inputs - Bermuda Factors'!$D$41)))) -> 333409.2164 | H31: Mortality Risk | I31: =B31/I$15 -> 0.1961307508 | K31: =D31/K$15 -> 0.08155417536 | M31: =F31/M$15 -> 0.1400341227
A32: CLTstoploss = Capital charge for stop loss risk | B32: ='2a.iv Inputs - Bermuda Factors'!$B10 -> 0 | D32: ='2a.iv Inputs - Bermuda Factors'!$B10 -> 0 | F32: ='2a.iv Inputs - Bermuda Factors'!$B10 -> 0 | H32: Stop Loss Risk | I32: 0 | K32: 0 | M32: 0
A33: CLTrider = Capital charge for riders risk (risks not covered in the other LT categories) | B33: ='2a.iv Inputs - Bermuda Factors'!$B11 -> 0 | D33: ='2a.iv Inputs - Bermuda Factors'!$B11 -> 0 | F33: ='2a.iv Inputs - Bermuda Factors'!$B11 -> 0 | H33: Rider Risk | I33: 0 | K33: 0 | M33: 0
A34: CLTmorbidity = Capital charge for morbidity risk | B34: ='2a.iv Inputs - Bermuda Factors'!$B12 -> 0 | D34: ='2a.iv Inputs - Bermuda Factors'!$B12 -> 0 | F34: ='2a.iv Inputs - Bermuda Factors'!$B12 -> 0 | H34: Morbidity Risk | I34: 0 | K34: 0 | M34: 0
A35: CLTlongevity = Capital charge for longevity risk | B35: ='2c. Inputs - Liabilities'!$L$20*IF('2c. Inputs - Liabilities'!$E$20<='2a.iv Inputs - Bermuda Factors'!$B$45,'2a.iv Inputs - Bermuda Factors'!$C$45,IF('2c. Inputs - Liabilities'!$E$20<='2a.iv Inputs - Bermuda Factors'!$B$46,'2a.iv Inputs - Bermuda Factors'!$C$46,IF('2c. Inputs - Liabilities'!$E$20<='2a.iv Inputs - Bermuda Factors'!$B$47,'2a.iv Inputs - Bermuda Factors'!$C$47,IF('2c. Inputs - Liabilities'!$E$20<='2a.iv Inputs - Bermuda Factors'!$B$48,'2a.iv Inputs - Bermuda Factors'!$C$48, IF('2c. Inputs - Liabilities'!$E$20<='2a.iv Inputs - Bermuda Factors'!$B$49,'2a.iv Inputs - Bermuda Factors'!$C$49,'2a.iv Inputs - Bermuda Factors'!$C$50))))) -> 375000 | D35: ='2c. Inputs - Liabilities'!$L$20*IF('2c. Inputs - Liabilities'!$E$20<='2a.iv Inputs - Bermuda Factors'!$B$45,'2a.iv Inputs - Bermuda Factors'!$C$45,IF('2c. Inputs - Liabilities'!$E$20<='2a.iv Inputs - Bermuda Factors'!$B$46,'2a.iv Inputs - Bermuda Factors'!$C$46,IF('2c. Inputs - Liabilities'!$E$20<='2a.iv Inputs - Bermuda Factors'!$B$47,'2a.iv Inputs - Bermuda Factors'!$C$47,IF('2c. Inputs - Liabilities'!$E$20<='2a.iv Inputs - Bermuda Factors'!$B$48,'2a.iv Inputs - Bermuda Factors'!$C$48, IF('2c. Inputs - Liabilities'!$E$20<='2a.iv Inputs - Bermuda Factors'!$B$49,'2a.iv Inputs - Bermuda Factors'!$C$49,'2a.iv Inputs - Bermuda Factors'!$C$50))))) -> 375000 | F35: ='2c. Inputs - Liabilities'!$L$31*IF('2c. Inputs - Liabilities'!$E$31<='2a.iv Inputs - Bermuda Factors'!$B$45,'2a.iv Inputs - Bermuda Factors'!$C$45,IF('2c. Inputs - Liabilities'!$E$31<='2a.iv Inputs - Bermuda Factors'!$B$46,'2a.iv Inputs - Bermuda Factors'!$C$46,IF('2c. Inputs - Liabilities'!$E$31<='2a.iv Inputs - Bermuda Factors'!$B$47,'2a.iv Inputs - Bermuda Factors'!$C$47,IF('2c. Inputs - Liabilities'!$E$31<='2a.iv Inputs - Bermuda Factors'!$B$48,'2a.iv Inputs - Bermuda Factors'!$C$48, IF('2c. Inputs - Liabilities'!$E$31<='2a.iv Inputs - Bermuda Factors'!$B$49,'2a.iv Inputs - Bermuda Factors'!$C$49,'2a.iv Inputs - Bermuda Factors'!$C$50))))) -> 562224.3276 | H35: Longevity Risk | I35: 0.1103525466 | K35: 0.04588628196 | M35: 0.2361380147
A36: CLTVariableAnnutiy = Capital charge for variable annuity risk | B36: ='2a.iv Inputs - Bermuda Factors'!$B13 -> 0 | D36: ='2a.iv Inputs - Bermuda Factors'!$B13 -> 0 | F36: ='2a.iv Inputs - Bermuda Factors'!$B13 -> 0 | H36: Variable Annuity Risk | I36: 0 | K36: 0 | M36: 0
A37: CLTotherrisk = Capital charge for other long-term insurance risk (policyholder behavior, expenses, and guarantees) | B37: ='2a.iv Inputs - Bermuda Factors'!$B$54*'2c. Inputs - Liabilities'!$L$19+'2a.iv Inputs - Bermuda Factors'!$B$55*'2c. Inputs - Liabilities'!$L$20 -> 30947.89695 | D37: ='2a.iv Inputs - Bermuda Factors'!$B$54*'2c. Inputs - Liabilities'!$L$19+'2a.iv Inputs - Bermuda Factors'!$B$55*'2c. Inputs - Liabilities'!$L$20 -> 30947.89695 | F37: ='2a.iv Inputs - Bermuda Factors'!$B$54*'2c. Inputs - Liabilities'!$L$30+'2a.iv Inputs - Bermuda Factors'!$B$55*'2c. Inputs - Liabilities'!$L$31 -> 15481.53945 | H37: Long Term Other Insurance Risk | I37: 0.009107144638 | K37: 0.003786890468 | M37: 0.00650235113
A39: Balance Sheet
A40: Assets
A41: Fixed Income | B41: =SUM('2b. Inputs - Assets'!C16:C17) -> 15050000 | D41: =SUM('2b. Inputs - Assets'!I16:I17) -> 3913000 | F41: =SUM('2b. Inputs - Assets'!C16:C17) -> 15050000
A42: Mortgages | B42: ='2b. Inputs - Assets'!C18 -> 2500000 | D42: ='2b. Inputs - Assets'!I18 -> 3640000 | F42: ='2b. Inputs - Assets'!C18 -> 2500000
A43: Real Estate | B43: ='2b. Inputs - Assets'!C19 -> 1000000 | D43: ='2b. Inputs - Assets'!I19 -> 3640000 | F43: ='2b. Inputs - Assets'!C19 -> 1000000
A44: Equity (Stocks in OECD or EEA countries) | B44: ='2b. Inputs - Assets'!C20 -> 500000 | D44: ='2b. Inputs - Assets'!I20 -> 3640000 | F44: ='2b. Inputs - Assets'!C20 -> 500000
A45: Equity (Stocks in emerging markets) | B45: ='2b. Inputs - Assets'!C21 -> 200000 | D45: ='2b. Inputs - Assets'!I21 -> 3640000 | F45: ='2b. Inputs - Assets'!C21 -> 200000
A46: Total Assets | B46: =SUM(B41:B45) -> 19250000 | D46: =SUM(D41:D45) -> 18473000 | F46: 19250000
A48: Liabilities
A49: Life | B49: ='2c. Inputs - Liabilities'!L19 -> 6189579.39 | D49: ='2c. Inputs - Liabilities'!L19 -> 6189579.39 | F49: ='2c. Inputs - Liabilities'!L30 -> 3096307.891
A50: Annuities | B50: ='2c. Inputs - Liabilities'!L20 -> 7500000 | D50: ='2c. Inputs - Liabilities'!L20 -> 7500000 | F50: ='2c. Inputs - Liabilities'!L31 -> 11244486.55
A51: Total Liabilities | B51: =SUM(B49:B50) -> 13689579.39 | D51: =SUM(D49:D50) -> 13689579.39 | F51: 14340794.44
A53: Surplus
A54: Required | B54: =B60 -> 2197169.087 | D54: =D60 -> 6601260.715 | F54: =F60 -> 1438550.977
A55: Free | B55: =B56-B54 -> 3363251.523 | D55: =D56-D54 -> -1817840.105 | F55: =F56-F54 -> 3470654.581
A56: Available Economic Capital and Surplus | B56: =B46-B51 -> 5560420.61 | D56: =D46-D51 -> 4783420.61 | F56: =F46-F51 -> 4909205.558
A58: Enhanced Capital Requirement (ECR) | B58: =SUM(B8:B12) -> 1830974.239 | D58: =SUM(D8:D12) -> 5501050.596 | F58: =SUM(F8:F12) -> 1198792.481 | G58: Same as BSCR as there is no internal model
A59: ECR Ratio (Same as BSCR Ratio) | B59: =B56/B58 -> 3.036864468 | D59: =D56/D58 -> 0.8695467396 | F59: =F56/F58 -> 4.095125417
A60: Target Capital Level (TCL) | B60: =1.2*B58 -> 2197169.087 | D60: =1.2*D58 -> 6601260.715 | F60: 1438550.977
A61: TCL Ratio | B61: =B56/B60 -> 2.53072039 | D61: =D56/D60 -> 0.724622283 | F61: =F56/F60 -> 3.412604514

Sheet 4. Results Summary
A1: SOA Research Institute
A2: Regulatory Capital Adequacy for Life Insurance Companies Example
A3: Summary of Results by Jurisdiction
A5: Base Scenario
C6: Market Value | F6: Book Value | I6: Capital | L6: Total | M6: Capital
A7: Jurisdiction | B7: Capital Requirement Method | C7: Assets | D7: Liabilities | E7: Capital | F7: Assets | G7: Liabilities | H7: Capital | I7: Base | J7: Adjusted | K7: Required | L7: Ratio | M7: Ratio1 | N7: Action
A8: US | B8: RBC | C8: ='2b. Inputs - Assets'!C22 -> 19250000 | D8: N/A | E8: N/A | F8: ='2b. Inputs - Assets'!B22 -> 18200000 | G8: ='2c. Inputs - Liabilities'!H21 -> 14243016.3 | H8: =F8-G8 -> 3956983.702 | I8: N/A | J8: ='3a. US'!B31 -> 3941983.702 | K8: ='3a. US'!D20 -> 932028 | L8: N/A | M8: ='3a. US'!B33 -> 4.229469181 | N8: =IF(M8<70%, "Company Under Regulatory Control", IF(M8<100%, "Regulator Authorized to Take Action Necessary to Protect Stakeholders", IF(M8<150%, "Company Must Submit/Revise RBC Plan & Regulator Will Issue Order of Corrective Action", IF(M8<200%, "Company Must Submit RBC Plan", IF( M8<250%, "Company Must Perform Trend Test", "No Action Required"))))) -> No Action Required
A9: Canada | B9: LICAT | C9: =C8 -> 19250000 | D9: N/A | E9: N/A | F9: ='3b. Canada'!B98 -> 18200000 | G9: ='2c. Inputs - Liabilities'!H21 -> 14243016.3 | H9: =F9-G9 -> 3956983.702 | I9: =SUM('3b. Canada'!B81:B83) -> 6000000 | J9: ='3b. Canada'!B81+'2a.ii Inputs - Canada Factors'!$B$6*SUM('3b. Canada'!B82:B83) -> 5700000 | K9: ='3b. Canada'!B43 -> 4316917.377 | L9: =I9/K9 -> 1.389880666 | M9: =J9/K9 -> 1.320386633 | N9: =IF(OR(L9<90%,M9<55%),"Below Minimum Ratio",IF(OR(L9<100%,M9<70%),"OFSI Early Intervention Process", "No Action Required")) -> No Action Required
A10: Europe | B10: Solvency II | C10: =C8 -> 19250000 | D10: ='2c. Inputs - Liabilities'!L21 -> 13689579.39 | E10: =C10-D10 -> 5560420.61 | F10: N/A | G10: N/A | H10: N/A | I10: N/A | J10: =E10 -> 5560420.61 | K10: ='3c. Europe'!B43 -> 2942183.639 | L10: N/A | M10: ='3c. Europe'!B46 -> 1.889895837 | N10: =IF(M10<25%, "Below Minumum Ratio, Company Loses Authorization", IF(M10<45%, "Supervisory Actions Taken", "No Action Required")) -> No Action Required
A11: Bermuda | B11: TCL | C11: ='3d. Bermuda'!B46 -> 19250000 | D11: ='2c. Inputs - Liabilities'!L21 -> 13689579.39 | E11: =C11-D11 -> 5560420.61 | F11: N/A | G11: N/A | H11: N/A | I11: N/A | J11: =E11 -> 5560420.61 | K11: ='3d. Bermuda'!B60 -> 2197169.087 | L11: N/A | M11: ='3d. Bermuda'!B61 -> 2.53072039 | N11: =IF(M11<100%, "Below Minimum Ratio", IF(M11 < 120%, "Company Must Submit Plan To Improve Ratio and Submit to Enhanced Monitoring and Additional Reporting Requirements", "No Action Required")) -> No Action Required
A12: 1 For Canada, the Capital Ratio is actually the Core Ratio.
A14: Riskier Assets
C15: Market Value | F15: Book Value | I15: Capital | L15: Total | M15: Capital
A16: Jurisdiction | B16: Capital Requirement Method | C16: Assets | D16: Liabilities | E16: Capital | F16: Assets | G16: Liabilities | H16: Capital | I16: Base | J16: Adjusted | K16: Required | L16: Ratio | M16: Ratio1 | N16: Action
A17: US | B17: RBC | C17: ='2b. Inputs - Assets'!I22 -> 18473000 | D17: N/A | E17: N/A | F17: ='2b. Inputs - Assets'!H22 -> 18200000 | G17: ='2c. Inputs - Liabilities'!H21 -> 14243016.3 | H17: =F17-G17 -> 3956983.702 | I17: N/A | J17: ='3a. US'!F31 -> 3941983.702 | K17: ='3a. US'!H20 -> 2200597 | L17: N/A | M17: ='3a. US'!F33 -> 1.791324673 | N17: =IF(M17<70%, "Company Under Regulatory Control", IF(M17<100%, "Regulator Authorized to Take Action Necessary to Protect Stakeholders", IF(M17<150%, "Company Must Submit/Revise RBC Plan & Regulator Will Issue Order of Corrective Action", IF(M17<200%, "Company Must Submit RBC Plan", IF( M17<250%, "Company Must Perform Trend Test", "No Action Required"))))) -> Company Must Submit RBC Plan
A18: Canada | B18: LICAT | C18: =C17 -> 18473000 | D18: N/A | E18: N/A | F18: ='2b. Inputs - Assets'!H22 -> 18200000 | G18: ='2c. Inputs - Liabilities'!H21 -> 14243016.3 | H18: =F18-G18 -> 3956983.702 | I18: =SUM('3b. Canada'!N81:N83) -> 6200000 | J18: ='3b. Canada'!N81+'2a.ii Inputs - Canada Factors'!$B$6*SUM('3b. Canada'!N82:N83) -> 5840000 | K18: ='3b. Canada'!N43 -> 7540758.926 | L18: =I18/K18 -> 0.8221984101 | M18: =J18/K18 -> 0.7744578572 | N18: =IF(OR(L18<90%,M18<55%),"Below Minimum Ratio",IF(OR(L18<100%,M18<70%),"OFSI Early Intervention Process", "No Action Required")) -> Below Minimum Ratio
A19: Europe | B19: Solvency II | C19: =C17 -> 18473000 | D19: ='2c. Inputs - Liabilities'!L21 -> 13689579.39 | E19: =C19-D19 -> 4783420.61 | F19: N/A | G19: N/A | H19: N/A | I19: N/A | J19: =E19 -> 4783420.61 | K19: ='3c. Europe'!D6 -> 6419333.054 | L19: N/A | M19: ='3c. Europe'!D46 -> 0.7451585032 | N19: =IF(M19<25%, "Below Minumum Ratio, Company Loses Authorization", IF(M19<45%, "Supervisory Actions Taken", "No Action Required")) -> No Action Required
A20: Bermuda | B20: TCL | C20: ='2b. Inputs - Assets'!I22 -> 18473000 | D20: ='2c. Inputs - Liabilities'!L21 -> 13689579.39 | E20: =C20-D20 -> 4783420.61 | F20: N/A | G20: N/A | H20: N/A | I20: N/A | J20: =E20 -> 4783420.61 | K20: ='3d. Bermuda'!D60 -> 6601260.715 | L20: N/A | M20: ='3d. Bermuda'!D61 -> 0.724622283 | N20: =IF(M20<100%, "Below Minimum Ratio", IF(M20 < 120%, "Company Must Submit Plan To Improve Ratio and Submit to Enhanced Monitoring and Additional Reporting Requirements", "No Action Required")) -> Below Minimum Ratio
A21: 1 For Canada, the Capital Ratio is actually the Core Ratio.
A23: Different Liabilities
C24: Market Value | F24: Book Value | I24: Capital | L24: Total | M24: Capital
A25: Jurisdiction | B25: Capital Requirement Method | C25: Assets | D25: Liabilities | E25: Capital | F25: Assets | G25: Liabilities | H25: Capital | I25: Base | J25: Adjusted | K25: Required | L25: Ratio | M25: Ratio1 | N25: Action
A26: US | B26: RBC | C26: ='2b. Inputs - Assets'!C22 -> 19250000 | D26: N/A | E26: N/A | F26: ='2b. Inputs - Assets'!B22 -> 18200000 | G26: ='2c. Inputs - Liabilities'!H32 -> 14243016.3 | H26: =F26-G26 -> 3956983.702 | I26: N/A | J26: ='3a. US'!J31 -> 3941983.702 | K26: ='3a. US'!L20 -> 732895 | L26: N/A | M26: ='3a. US'!J33 -> 5.378647285 | N26: =IF(M26<70%, "Company Under Regulatory Control", IF(M26<100%, "Regulator Authorized to Take Action Necessary to Protect Stakeholders", IF(M26<150%, "Company Must Submit/Revise RBC Plan & Regulator Will Issue Order of Corrective Action", IF(M26<200%, "Company Must Submit RBC Plan", IF( M26<250%, "Company Must Perform Trend Test", "No Action Required"))))) -> No Action Required
A27: Canada | B27: LICAT | C27: =C26 -> 19250000 | D27: N/A | E27: N/A | F27: ='2b. Inputs - Assets'!B22 -> 18200000 | G27: ='2c. Inputs - Liabilities'!H32 -> 14243016.3 | H27: =F27-G27 -> 3956983.702 | I27: =SUM('3b. Canada'!X81:X83) -> 6200000 | J27: ='3b. Canada'!X81+'2a.ii Inputs - Canada Factors'!$B$6*SUM('3b. Canada'!X82:X83) -> 5840000 | K27: ='3b. Canada'!X43 -> 2070581.099 | L27: =I27/K27 -> 2.994328502 | M27: =J27/K27 -> 2.820464267 | N27: =IF(OR(L27<90%,M27<55%),"Below Minimum Ratio",IF(OR(L27<100%,M27<70%),"OFSI Early Intervention Process", "No Action Required")) -> No Action Required
A28: Europe | B28: Solvency II | C28: =C26 -> 19250000 | D28: ='2c. Inputs - Liabilities'!L32 -> 14340794.44 | E28: =C28-D28 -> 4909205.558 | F28: N/A | G28: N/A | H28: N/A | I28: N/A | J28: =E28 -> 4909205.558 | K28: ='3c. Europe'!F6 -> 1608030.831 | L28: N/A | M28: ='3c. Europe'!F46 -> 3.052929996 | N28: =IF(M28<25%, "Below Minumum Ratio, Company Loses Authorization", IF(M28<45%, "Supervisory Actions Taken", "No Action Required")) -> No Action Required
A29: Bermuda | B29: TCL | C29: =C26 -> 19250000 | D29: ='2c. Inputs - Liabilities'!L32 -> 14340794.44 | E29: =C29-D29 -> 4909205.558 | F29: N/A | G29: N/A | H29: N/A | I29: N/A | J29: =E29 -> 4909205.558 | K29: ='3d. Bermuda'!F60 -> 1438550.977 | L29: N/A | M29: ='3d. Bermuda'!F61 -> 3.412604514 | N29: =IF(M29<100%, "Below Minimum Ratio", IF(M29 < 120%, "Company Must Submit Plan To Improve Ratio and Submit to Enhanced Monitoring and Additional Reporting Requirements", "No Action Required")) -> No Action Required
A30: 1 For Canada, the Capital Ratio is actually the Core Ratio.
B35: Capital Requirements by Jurisdiction
B36: Country and Ratio | H36: Required Action
B37: US
B38: 200% <= RBC Ratio < 250% | E38: Trend Test Corridor | H38: Company must perform trend test
B39: 150% <= RBC Ratio < 200% | E39: Company Action Level | H39: Company must prepare and submit RBC plan to regulator
B40: 100% <= RBC Ratio < 150% | E40: Regulator Action Level | H40: Company must submit (or revise) RBC plan and regulator will issue an order of corrective action
B41: 70% <= RBC Ratio < 100% | E41: Authorized Control Level | H41: Authorizes regulator to take actions necessary to protect stakeholders
B42: RBC Ratio < 70% | E42: Mandatory Control Level | H42: Requires regulator to put Company under regulatory control
B43: Canada
B44: 70% <= Total Ratio < 100% OR 55% <= Core Ratio < 90% | E44: Early Intervention Process | H44: OSFI may impose business restrictions as necessary and/or issue directions of compliance
B45: Total Ratio < 70% OR Core Ratio < 55% | E45: Minimum Required Level | H45: Below this level, the OSFI may temporarily place the company under regulatory control.
B46: Europe
B47: 25% <= Basic SCR Ratio < 45% | E47: Early Intervention Process | H47: Increasingly severe prescribed supervisory actions will be taken as capital decreases toward 25%
B48: Basic SCR Ratio < 25% | E48: Minimum Required Level | H48: Below this level, Company loses its authorization to operate
B49: Bermuda
B50: 100% <= ECR Ratio < 120% | E50: Early Intervention Process | H50: Company must submit a remediation plan and provide additional reporting for enhanced monitoring
B51: ECR Ratio < 100% | E51: Minimum Required Level | H51: Below this level, the Company must improve its capital position and faces wind-up of business
